"Merchandising Type Category","Detailed Merchant Category","Supplier","Purchase Details","Transaction Date","Value","Department"
"Business Services","Advertising Services","Facebk B8b6v2b8z2","Supplies and Services related expenditure","01/04/2021","12.92","Director of Corporate Services"
"Business Expenses/Services","Postage Stamps","Royal Mail Group","Supplies and Services related expenditure","01/04/2021","125.31","Director of Housing, Neighbourhood and Building Services"
"Auto/Vehicle Expenses","Auto Service Shops/Non Dealer","Www.Kwik Fit.Co.Uk","Transport related expenditure","01/04/2021","669.74","Director of Housing, Neighbourhood and Building Services"
"Business To Business Eqpt/Furn","Computer Software Stores","Textmagic.Com","Supplies and Services related expenditure","01/04/2021","20.00","Director of Portsmouth International Port"
"Other Supplies","Misc Speciality Retail","Amznmktplace","Supplies and Services related expenditure","01/04/2021","33.82","Director of Housing, Neighbourhood and Building Services"
"Facilities/Repair Supplies","Home Supply Warehouse Stores","B&q Direct","Supplies and Services related expenditure","01/04/2021","37.50","Director of Housing, Neighbourhood and Building Services"
"Medical","Lab/Med/Hospital Equipment","Wightman & Parrish Ltd","Premises related expenditure","01/04/2021","180.00","Director of Housing, Neighbourhood and Building Services"
"Business Services","Business Services - Default","Indeed Tel+35312545907","Employees related expenditure","01/04/2021","32.34","Director of Children's Services and Education"
"Other Supplies","Catalog Merchant","Www.Insectlore-Europe.Co","Supplies and Services related expenditure","01/04/2021","14.98","Director of Children's Services and Education"
"Business Services","Business Services - Default","Vivid Housing Ltd","Supplies and Services related expenditure","01/04/2021","16.22","Director of Children's Services and Education"
"Medical","Lab/Med/Hospital Equipment","Wightman & Parrish","Premises related expenditure","01/04/2021","76.20","Director of Housing, Neighbourhood and Building Services"
"Medical","Lab/Med/Hospital Equipment","Wightman & Parrish","Premises related expenditure","01/04/2021","135.99","Director of Housing, Neighbourhood and Building Services"
"Utility","Computer Network/Info Svcs","Siteground Hosting","Supplies and Services related expenditure","01/04/2021","375.48","Director of Corporate Services"
"Type of Retail Store","Grocery Stores/Supermarkets","Tesco Stores 5153","Supplies and Services related expenditure","01/04/2021","3.16","Director of Children's Services and Education"
"Other Supplies","Combination Catalog & Retail","Www.Acamh.Org","Employees related expenditure","01/04/2021","97.50","Director of Children's Services and Education"
"Other Supplies","Catalog Merchant","Www.Softcat.Com","Supplies and Services related expenditure","01/04/2021","267.37","Director of Children's Services and Education"
"Other Supplies","Catalog Merchant","Www.Softcat.Com","Supplies and Services related expenditure","01/04/2021","338.52","Director of Children's Services and Education"
"Government Service","Govt Serv - Default","Tile Barn","Agency and Third Party Payments related expenditure","01/04/2021","100.00","Director of Children's Services and Education"
"Government Service","Govt Serv - Default","Tile Barn","Agency and Third Party Payments related expenditure","01/04/2021","100.00","Director of Children's Services and Education"
"Government Service","Govt Serv - Default","Tile Barn","Agency and Third Party Payments related expenditure","01/04/2021","100.00","Director of Children's Services and Education"
"Government Service","Govt Serv - Default","Tile Barn","Agency and Third Party Payments related expenditure","01/04/2021","115.00","Director of Children's Services and Education"
"Government Service","Govt Serv - Default","Tile Barn","Agency and Third Party Payments related expenditure","01/04/2021","115.00","Director of Children's Services and Education"
"Government Service","Govt Serv - Default","Tile Barn","Agency and Third Party Payments related expenditure","01/04/2021","115.00","Director of Children's Services and Education"
"Facilities/Repair Supplies","Home Supply Warehouse Stores","B & Q 1238","Premises related expenditure","01/04/2021","39.74","Director of Children's Services and Education"
"Facilities/Repair Supplies","Home Supply Warehouse Stores","B & Q 1238","Supplies and Services related expenditure","01/04/2021","19.00","Director of Children's Services and Education"
"Transportation Conveyor","Passenger Railways","New Southern Railw","Supplies and Services related expenditure","01/04/2021","3.50","Director of Children's Services and Education"
"Type of Retail Store","Grocery Stores/Supermarkets","Sainsburys S/Mkts","Supplies and Services related expenditure","01/04/2021","6.00","Director of Children's Services and Education"
"Transportation Conveyor","Marinas","Hampshire","Transport related expenditure","01/04/2021","13.75","Director of Children's Services and Education"
"Eating And Drinking Places","Fast Food Restaurants","Surf Shack Cafe","Agency and Third Party Payments related expenditure","01/04/2021","22.50","Director of Children's Services and Education"
"Facilities/Repair Supplies","Bicycle Shops/Sales/Service","Bike U Like","Supplies and Services related expenditure","01/04/2021","12.50","Director of Children's Services and Education"
"Facilities/Repair Supplies","Bicycle Shops/Sales/Service","Bike U Like","Supplies and Services related expenditure","01/04/2021","12.50","Director of Children's Services and Education"
"Facilities/Repair Supplies","Bicycle Shops/Sales/Service","Bike U Like","Supplies and Services related expenditure","01/04/2021","12.50","Director of Children's Services and Education"
"Eating And Drinking Places","Eating Places/Restaurants","Domino S Pizza","Agency and Third Party Payments related expenditure","01/04/2021","46.18","Director of Children's Services and Education"
"Digital Goods","Digital Goods - Applications (Excludes Games)","Facebk *facebk Kzvq43fqs2","Supplies and Services related expenditure","01/04/2021","74.91","Director of Children's Services and Education"
"Business Expenses/Services","Postage Stamps","Royal Mail Group Ltd","Supplies and Services related expenditure","01/04/2021","27.95","Director of Culture, Leisure & Regulatory Services"
"Business To Business Eqpt/Furn","Book Stores","The Institution Of","Supplies and Services related expenditure","01/04/2021","230.00","Director of Housing, Neighbourhood and Building Services"
"Miscellaneous","Veterinary Service","Iz *canine Fit Physio","Supplies and Services related expenditure","01/04/2021","45.00","Director of Housing, Neighbourhood and Building Services"
"Other Supplies","Misc Speciality Retail","Amznmktplace","Premises related expenditure","01/04/2021","12.46","Director of Children's Services and Education"
"Type of Retail Store","Grocery Stores/Supermarkets","Tesco Stores 2322","Supplies and Services related expenditure","01/04/2021","-5.10","Director of Adult Services"
"Type of Retail Store","Grocery Stores/Supermarkets","Tesco Stores 2322","Supplies and Services related expenditure","01/04/2021","5.10","Director of Adult Services"
"Type of Retail Store","Grocery Stores/Supermarkets","Tesco Stores 2322","Supplies and Services related expenditure","01/04/2021","7.92","Director of Adult Services"
"Business To Business Facility/","Industrial Supplies - Def","Solent Scale Services Ltd","Supplies and Services related expenditure","01/04/2021","112.50","Director of Adult Services"
"Business To Business Facility/","Industrial Supplies - Def","Solent Scale Services Ltd","Supplies and Services related expenditure","01/04/2021","112.50","Director of Adult Services"
"Type of Retail Store","Drug Stores & Pharmacies","Rowlands Pharmacy 1641","Supplies and Services related expenditure","01/04/2021","16.67","Director of Children's Services and Education"
"Other Supplies","Discount Stores","Www.Theworks.Co.Uk","Supplies and Services related expenditure","01/04/2021","73.60","Director of Children's Services and Education"
"Facilities/Repair Supplies","Lumber/Build. Supply Stores","Screwfix Direct","Supplies and Services related expenditure","01/04/2021","229.14","Director of Portsmouth International Port"
"Transportation Conveyor","Local Commuter Transport","Www.Hovertravel.Com","Transport related expenditure","01/04/2021","24.60","Director of Children's Services and Education"
"Other Supplies","Misc Speciality Retail","Amznmktplace","Supplies and Services related expenditure","01/04/2021","45.83","Director of Adult Services"
"Facilities/Repair Supplies","Automotive Parts Stores","National Windscreens","Transport related expenditure","01/04/2021","96.50","Director of Housing, Neighbourhood and Building Services"
"Type of Retail Store","Grocery Stores/Supermarkets","Tesco Stores 4579","Supplies and Services related expenditure","01/04/2021","24.92","Director of Housing, Neighbourhood and Building Services"
"Type of Retail Store","Grocery Stores/Supermarkets","Tesco Stores 4579","Supplies and Services related expenditure","01/04/2021","44.69","Director of Housing, Neighbourhood and Building Services"
"Other Supplies","Department Stores","The Range","Supplies and Services related expenditure","01/04/2021","4.99","Director of Adult Services"
"Hotels And Motels","Hotel Ibis","Hotel Ibis","Supplies and Services related expenditure","01/04/2021","220.17","Director of Children's Services and Education"
"Hotels And Motels","Hotel Ibis","Hotel Ibis","Supplies and Services related expenditure","01/04/2021","416.67","Director of Children's Services and Education"
"Other Supplies","Misc Gen Merchandise - Def","Wilko Retail Limited","Premises related expenditure","01/04/2021","40.58","Director of Housing, Neighbourhood and Building Services"
"Type of Retail Store","Grocery Stores/Supermarkets","Tesco Gift Card","Supplies and Services related expenditure","01/04/2021","50.00","Director of Children's Services and Education"
"Other Supplies","Discount Stores","Argos Ltd","Supplies and Services related expenditure","01/04/2021","226.95","Director of Children's Services and Education"
"Type of Retail Store","Electronics Sales","Currys Online","Supplies and Services related expenditure","01/04/2021","6.66","Director of Housing, Neighbourhood and Building Services"
"Type of Retail Store","Electronics Sales","Currys Online","Supplies and Services related expenditure","01/04/2021","6.66","Director of Housing, Neighbourhood and Building Services"
"Other Supplies","Misc Speciality Retail","Amznmktplace","Supplies and Services related expenditure","01/04/2021","83.50","Director of Housing, Neighbourhood and Building Services"
"Type of Retail Store","Drug Stores & Pharmacies","Lloyds Pharmacy","Supplies and Services related expenditure","01/04/2021","14.97","Director of Adult Services"
"Business Expenses/Services","Postage Stamps","Royal Mail Charges","Supplies and Services related expenditure","01/04/2021","1.50","Director of Housing, Neighbourhood and Building Services"
"Automobile Services & Supplies","Service Stations","Shell A3 T North","Supplies and Services related expenditure","01/04/2021","4.24","Director of Adult Services"
"Other Supplies","Misc Gen Merchandise - Def","Cunninghamcovers","Supplies and Services related expenditure","01/04/2021","85.00","Director of Children's Services and Education"
"Type of Retail Store","Grocery Stores/Supermarkets","Tesco Store 3186","Supplies and Services related expenditure","01/04/2021","8.33","Director of Children's Services and Education"
"Other Supplies","Misc Speciality Retail","Timpson Ltd","Supplies and Services related expenditure","01/04/2021","15.00","Director of Children's Services and Education"
"Other Supplies","Department Stores","Southern Co-Op 0008","Supplies and Services related expenditure","01/04/2021","126.83","Director of Children's Services and Education"
"Type of Retail Store","Grocery Stores/Supermarkets","Asda Stores","Supplies and Services related expenditure","01/04/2021","20.50","Director of Children's Services and Education"
"Type of Retail Store","Grocery Stores/Supermarkets","Tesco Stores 4611","Supplies and Services related expenditure","01/04/2021","20.00","Director of Children's Services and Education"
"Type of Retail Store","Grocery Stores/Supermarkets","Tesco Stores 5475","Supplies and Services related expenditure","01/04/2021","40.00","Director of Children's Services and Education"
"Hotels And Motels","Hotel Ibis","Hotel Ibis","Supplies and Services related expenditure","01/04/2021","-52.00","Director of Children's Services and Education"
"Business To Business Eqpt/Furn","Computer Software Stores","Oneclick","Supplies and Services related expenditure","01/04/2021","66.00","Director of Children's Services and Education"
"Equipment And Furniture","Furniture/Equip Stores","Bedworld","Supplies and Services related expenditure","01/04/2021","477.00","Director of Children's Services and Education"
"Government Service","Colleges/Univ/Jc/Profession","Paypal","Transport related expenditure","01/04/2021","18.75","Director of Housing, Neighbourhood and Building Services"
"Transportation Conveyor","Passenger Railways","Swr Ryde Esplanade Sel","Transport related expenditure","01/04/2021","4.90","Director of Children's Services and Education"
"Transportation Conveyor","Parking Lots, Meters, Garages","3c_*portsmouth City Coun","Transport related expenditure","01/04/2021","7.08","Director of Children's Services and Education"
"Type of Retail Store","Grocery Stores/Supermarkets","Asda Stores Ltd","Supplies and Services related expenditure","01/04/2021","20.00","Director of Children's Services and Education"
"Transportation Conveyor","Passenger Railways","Swrailway Tck Off","Transport related expenditure","01/04/2021","44.20","Director of Children's Services and Education"
"Government Service","Govt Serv - Default","Www.Ico.Org.Uk","Supplies and Services related expenditure","01/04/2021","40.00","Director of Children's Services and Education"
"Business To Business Facility/","Industrial Supplies - Def","Arco Limited (Sap)","Supplies and Services related expenditure","01/04/2021","13.91","Director of Housing, Neighbourhood and Building Services"
"Facilities/Repair Supplies","Lumber/Build. Supply Stores","David Cover And Son","Premises related expenditure","01/04/2021","16.34","Director of Children's Services and Education"
"Transportation Conveyor","Passenger Railways","Sw Railway App","Transport related expenditure","01/04/2021","-80.50","Director of Regeneration"
"Business To Business Facility/","Hardware Equipment/Supplies","Croma Locksmiths & Sec","Supplies and Services related expenditure","01/04/2021","34.50","Director of Housing, Neighbourhood and Building Services"
"Type of Retail Store","Grocery Stores/Supermarkets","Asda Superstore","Supplies and Services related expenditure","01/04/2021","5.46","Director of Adult Services"
"Facilities/Repair Services","Landscape/Horticultural Se","Alsoils + Ltd","Supplies and Services related expenditure","01/04/2021","458.33","Director of Housing, Neighbourhood and Building Services"
"Type of Retail Store","Record Shops","Amazon Music","Supplies and Services related expenditure","01/04/2021","12.49","Director of Adult Services"
"Other Supplies","Misc Speciality Retail","Amznmktplace","Supplies and Services related expenditure","01/04/2021","8.33","Director of Regeneration"
"Facilities/Repair Supplies","Home Supply Warehouse Stores","B & Q 1260","Supplies and Services related expenditure","01/04/2021","5.00","Director of Housing, Neighbourhood and Building Services"
"Type of Retail Store","Grocery Stores/Supermarkets","Asda Superstore","Premises related expenditure","01/04/2021","7.94","Director of Housing, Neighbourhood and Building Services"
"Type of Retail Store","Grocery Stores/Supermarkets","Asda Superstore","Supplies and Services related expenditure","01/04/2021","5.00","Director of Housing, Neighbourhood and Building Services"
"Business To Business Eqpt/Furn","Computer Software Stores","Anydesk Software Gmbh","Supplies and Services related expenditure","01/04/2021","348.77","Director of Portsmouth International Port"
"Business Services","Business Services - Default","Zebra Waste","Premises related expenditure","01/04/2021","240.00","Director of Adult Services"
"Facilities/Repair Supplies","Lumber/Build. Supply Stores","Screwfix Direct","Supplies and Services related expenditure","01/04/2021","28.32","Director of Housing, Neighbourhood and Building Services"
"Other Supplies","Misc Speciality Retail","Amznbusiness","Supplies and Services related expenditure","01/04/2021","9.05","Director of Culture, Leisure & Regulatory Services"
"Transportation Conveyor","Parking Lots, Meters, Garages","3c_*portsmouth City Coun","Supplies and Services related expenditure","01/04/2021","3.10","Director of Children's Services and Education"
"Government Service","Govt Serv - Default","Dvla Driver Online","Supplies and Services related expenditure","01/04/2021","34.00","Director of Children's Services and Education"
"Business Services","Business Services - Default","Eb *supporting Childre","Supplies and Services related expenditure","01/04/2021","135.00","Director of Children's Services and Education"
"Miscellaneous","Member Organizations - Def","Www.Cscs.Uk.Com","Supplies and Services related expenditure","01/04/2021","30.00","Director of Regeneration"
"Business To Business Eqpt/Furn","Stationery/Office Supplies","Www.Banneruk.Com","Premises related expenditure","01/04/2021","55.86","Director of Children's Services and Education"
"Type of Retail Store","Grocery Stores/Supermarkets","Tesco Stores 4579","Supplies and Services related expenditure","01/04/2021","3.33","Director of Children's Services and Education"
"Digital Goods","Digital Goods - Games","Microsoft*xbox","Agency and Third Party Payments related expenditure","01/04/2021","9.85","Director of Children's Services and Education"
"Type of Retail Store","Grocery Stores/Supermarkets","Tesco Stores 4579","Supplies and Services related expenditure","01/04/2021","10.00","Director of Children's Services and Education"
"Type of Retail Store","Grocery Stores/Supermarkets","Tesco Stores 4579","Supplies and Services related expenditure","01/04/2021","4.98","Director of Children's Services and Education"
"Type of Retail Store","Grocery Stores/Supermarkets","Tesco Stores 4579","Supplies and Services related expenditure","01/04/2021","3.79","Director of Children's Services and Education"
"Type of Retail Store","Grocery Stores/Supermarkets","Tesco Stores 4579","Supplies and Services related expenditure","01/04/2021","12.35","Director of Children's Services and Education"
"Type of Retail Store","Grocery Stores/Supermarkets","Tesco Stores 4579","Supplies and Services related expenditure","01/04/2021","7.67","Director of Children's Services and Education"
"Type of Retail Store","Grocery Stores/Supermarkets","Tesco Stores 4579","Supplies and Services related expenditure","01/04/2021","28.33","Director of Children's Services and Education"
"Type of Retail Store","Grocery Stores/Supermarkets","Tesco Stores 4579","Supplies and Services related expenditure","01/04/2021","2.83","Director of Children's Services and Education"
"Type of Retail Store","Grocery Stores/Supermarkets","Tesco Stores 4579","Supplies and Services related expenditure","01/04/2021","21.69","Director of Children's Services and Education"
"Miscellaneous","Child Care Services","Www.Ymca-Fg.Org","Supplies and Services related expenditure","01/04/2021","75.00","Director of Children's Services and Education"
"Type of Retail Store","Grocery Stores/Supermarkets","Co-Op Group Food","Supplies and Services related expenditure","01/04/2021","4.40","Director of Children's Services and Education"
"Business To Business Other Sup","Uniforms & Commercial Clothing","Alexandra Website","Supplies and Services related expenditure","01/04/2021","144.81","Director of Housing, Neighbourhood and Building Services"
"Other Supplies","Misc Speciality Retail","Amznbusiness","Supplies and Services related expenditure","01/04/2021","24.33","Director of Children's Services and Education"
"Business To Business Facility/","Hardware Equipment/Supplies","Shg Ltd","Supplies and Services related expenditure","01/04/2021","74.99","Director of Housing, Neighbourhood and Building Services"
"Business To Business Facility/","Hardware Equipment/Supplies","Shg Ltd","Supplies and Services related expenditure","01/04/2021","74.99","Director of Housing, Neighbourhood and Building Services"
"Business To Business Facility/","Hardware Equipment/Supplies","Shg Ltd","Supplies and Services related expenditure","01/04/2021","74.98","Director of Housing, Neighbourhood and Building Services"
"Miscellaneous","Elementary/Secondary School","Paypal","Supplies and Services related expenditure","01/04/2021","50.00","Director of Children's Services and Education"
"Government Service","Govt Serv - Default","Dvla Driver Online","Supplies and Services related expenditure","02/04/2021","20.00","Director of Children's Services and Education"
"Utility","Phone Serv/Equip Utility","Virgin Media Pymts","Supplies and Services related expenditure","02/04/2021","90.00","Director of Children's Services and Education"
"Other Supplies","Misc Speciality Retail","Amznmktplace","Supplies and Services related expenditure","02/04/2021","79.15","Director of Adult Services"
"Other Supplies","Misc Speciality Retail","Amznbusiness","Agency and Third Party Payments related expenditure","02/04/2021","174.99","Director of Children's Services and Education"
"Other Supplies","Misc Speciality Retail","Amznmktplace","Supplies and Services related expenditure","02/04/2021","152.75","Director of Adult Services"
"Type of Retail Store","Grocery Stores/Supermarkets","Www.Iceland.Co.Uk","Supplies and Services related expenditure","02/04/2021","-4.00","Director of Adult Services"
"Type of Retail Store","Grocery Stores/Supermarkets","Www.Iceland.Co.Uk","Supplies and Services related expenditure","02/04/2021","80.72","Director of Adult Services"
"Type of Retail Store","Grocery Stores/Supermarkets","Tesco Stores 6002","Supplies and Services related expenditure","02/04/2021","9.19","Director of Children's Services and Education"
"Type of Retail Store","Grocery Stores/Supermarkets","Tesco Stores 6002","Supplies and Services related expenditure","02/04/2021","156.22","Director of Children's Services and Education"
"Utility","Phone Serv/Equip Utility","Giffgaff","Supplies and Services related expenditure","02/04/2021","20.00","Director of Children's Services and Education"
"Facilities/Repair Supplies","Lumber/Build. Supply Stores","Screwfix Dir Ltd","Premises related expenditure","02/04/2021","71.17","Director of Housing, Neighbourhood and Building Services"
"Other Supplies","Misc Speciality Retail","Amznmktplace","Supplies and Services related expenditure","02/04/2021","14.16","Director of Regeneration"
"Eating And Drinking Places","Fast Food Restaurants","McDonalds","Agency and Third Party Payments related expenditure","02/04/2021","5.11","Director of Children's Services and Education"
"Eating And Drinking Places","Fast Food Restaurants","McDonalds","Agency and Third Party Payments related expenditure","02/04/2021","1.61","Director of Children's Services and Education"
"Other Supplies","Department Stores","Southern Co-Op 0014","Agency and Third Party Payments related expenditure","02/04/2021","6.67","Director of Children's Services and Education"
"Type of Retail Store","Grocery Stores/Supermarkets","Wm Morrisons Store","Supplies and Services related expenditure","02/04/2021","5.00","Director of Children's Services and Education"
"Type of Retail Store","Grocery Stores/Supermarkets","Wm Morrisons Store","Supplies and Services related expenditure","02/04/2021","3.00","Director of Children's Services and Education"
"Eating And Drinking Places","Fast Food Restaurants","McDonalds","Agency and Third Party Payments related expenditure","02/04/2021","6.74","Director of Children's Services and Education"
"Eating And Drinking Places","Fast Food Restaurants","McDonalds","Agency and Third Party Payments related expenditure","02/04/2021","2.02","Director of Children's Services and Education"
"Automobile Services & Supplies","Service Stations","Tesco Pfs 2339","Supplies and Services related expenditure","02/04/2021","12.08","Director of Children's Services and Education"
"Type of Retail Store","Grocery Stores/Supermarkets","Sainsburys S/mkt","Supplies and Services related expenditure","02/04/2021","8.33","Director of Children's Services and Education"
"Type of Retail Store","Grocery Stores/Supermarkets","Sainsburys S/mkt","Supplies and Services related expenditure","02/04/2021","2.92","Director of Children's Services and Education"
"Type of Retail Store","Grocery Stores/Supermarkets","Sainsburys S/mkt","Supplies and Services related expenditure","02/04/2021","41.18","Director of Children's Services and Education"
"Other Supplies","Misc Speciality Retail","Amznbusiness","Supplies and Services related expenditure","03/04/2021","8.32","Director of Adult Services"
"Type of Retail Store","Grocery Stores/Supermarkets","Tesco Stores 4579","Supplies and Services related expenditure","03/04/2021","3.46","Director of Children's Services and Education"
"Type of Retail Store","Grocery Stores/Supermarkets","Tesco Stores 2494","Supplies and Services related expenditure","03/04/2021","3.58","Director of Children's Services and Education"
"Other Supplies","Misc Speciality Retail","Amznbusiness","Supplies and Services related expenditure","03/04/2021","20.79","Director of Adult Services"
"Type of Retail Store","Grocery Stores/Supermarkets","Tesco Store 3055","Supplies and Services related expenditure","03/04/2021","9.21","Director of Children's Services and Education"
"Type of Retail Store","Grocery Stores/Supermarkets","Tesco Store 3055","Supplies and Services related expenditure","03/04/2021","10.03","Director of Children's Services and Education"
"Type of Retail Store","Grocery Stores/Supermarkets","Tesco Store 3055","Supplies and Services related expenditure","03/04/2021","31.79","Director of Children's Services and Education"
"Miscellaneous","Charitable/Soc Service Orgs","Www.Adass.Org.Uk","Employees related expenditure","03/04/2021","100.00","Director of Adult Services"
"Other Supplies","Misc Speciality Retail","Amznbusiness Amazon.Co.Uk","Supplies and Services related expenditure","03/04/2021","-0.46","Solent LEP"
"Other Supplies","Misc Speciality Retail","Amznbusiness","Supplies and Services related expenditure","03/04/2021","19.36","Solent LEP"
"Type of Retail Store","Grocery Stores/Supermarkets","Tesco Store 3055","Supplies and Services related expenditure","03/04/2021","15.83","Director of Children's Services and Education"
"Type of Retail Store","Grocery Stores/Supermarkets","Tesco Store 3055","Premises related expenditure","03/04/2021","6.63","Director of Children's Services and Education"
"Type of Retail Store","Grocery Stores/Supermarkets","Tesco Store 3055","Supplies and Services related expenditure","03/04/2021","4.67","Director of Children's Services and Education"
"Type of Retail Store","Grocery Stores/Supermarkets","Tesco Store 3055","Supplies and Services related expenditure","03/04/2021","78.86","Director of Children's Services and Education"
"Other Supplies","Misc Speciality Retail","Amz*t G Outlet","Supplies and Services related expenditure","04/04/2021","-83.25","Director of Housing, Neighbourhood and Building Services"
"Other Supplies","Misc Speciality Retail","Amznmktplace","Supplies and Services related expenditure","04/04/2021","83.50","Director of Housing, Neighbourhood and Building Services"
"Utility","Phone Serv/Equip Utility","Zoom.Us 888-799-9666","Supplies and Services related expenditure","04/04/2021","11.99","Director of Children's Services and Education"
"Other Supplies","Misc Speciality Retail","Amznmktplace","Supplies and Services related expenditure","04/04/2021","71.63","Director of Adult Services"
"Other Supplies","Misc Speciality Retail","Amznbusiness Amazon.Co.Uk","Supplies and Services related expenditure","04/04/2021","-0.47","Solent LEP"
"Other Supplies","Misc Speciality Retail","Amznmktplace","Supplies and Services related expenditure","04/04/2021","43.26","Director of Children's Services and Education"
"Other Supplies","Misc Speciality Retail","Amznmktplace","Supplies and Services related expenditure","04/04/2021","4.70","Director of Children's Services and Education"
"Other Supplies","Department Stores","Southern Co-Op 0008","Agency and Third Party Payments related expenditure","04/04/2021","3.33","Director of Children's Services and Education"
"Miscellaneous","Continuity/Subscription Mercht","Mailchimp","Supplies and Services related expenditure","04/04/2021","55.17","Director of Culture, Leisure & Regulatory Services"
"Other Supplies","Misc Speciality Retail","Amznbusiness","Supplies and Services related expenditure","04/04/2021","18.32","Director of Children's Services and Education"
"Other Supplies","Catalog Merchant","Www.Nisbets.Com","Supplies and Services related expenditure","05/04/2021","174.32","Director of Culture, Leisure & Regulatory Services"
"Digital Goods","Digital Goods - Media, Books, Movies, Music","Spotify Uk","Supplies and Services related expenditure","05/04/2021","14.99","Director of Children's Services and Education"
"Type of Retail Store","Music Stores/Pianos","Joytunes","Supplies and Services related expenditure","05/04/2021","17.99","Director of Children's Services and Education"
"Freight/Courier/Warehouse Svcs","Public Warehousing","Safestore Limited","Premises related expenditure","05/04/2021","-25.94","Director of Housing, Neighbourhood and Building Services"
"Freight/Courier/Warehouse Svcs","Public Warehousing","Safestore Limited","Agency and Third Party Payments related expenditure","05/04/2021","-40.00","Director of Housing, Neighbourhood and Building Services"
"Freight/Courier/Warehouse Svcs","Public Warehousing","Safestore Limited","Premises related expenditure","05/04/2021","-30.99","Director of Housing, Neighbourhood and Building Services"
"Freight/Courier/Warehouse Svcs","Public Warehousing","Safestore Limited","Premises related expenditure","05/04/2021","-94.27","Director of Housing, Neighbourhood and Building Services"
"Other Supplies","Gift/Card/Novelty And Souvenir Stores","The Celebration Store","Agency and Third Party Payments related expenditure","05/04/2021","39.08","Director of Children's Services and Education"
"Facilities/Repair Supplies","Lawn/Garden Supply/Nursery","Ahs Direct / Bbm","Premises related expenditure","05/04/2021","1,019.90","Director of Housing, Neighbourhood and Building Services"
"Type of Retail Store","Grocery Stores/Supermarkets","Www.Iceland.Co.Uk","Supplies and Services related expenditure","05/04/2021","-10.50","Director of Adult Services"
"Type of Retail Store","Grocery Stores/Supermarkets","Www.Iceland.Co.Uk","Supplies and Services related expenditure","05/04/2021","79.17","Director of Adult Services"
"Transportation Conveyor","Local Commuter Transport","Www.Hovertravel.Com","Transport related expenditure","05/04/2021","24.60","Director of Children's Services and Education"
"Government Service","Schools - Default","Www.First-Rescue.Co.Uk","Supplies and Services related expenditure","05/04/2021","70.53","Director of Portsmouth International Port"
"Type of Retail Store","Freezer/Meat Lockers","Dennis Edwards Food Serv","Supplies and Services related expenditure","05/04/2021","109.97","Director of Adult Services"
"Type of Retail Store","Freezer/Meat Lockers","Dennis Edwards Food Serv","Supplies and Services related expenditure","05/04/2021","522.78","Director of Adult Services"
"Type of Retail Store","Freezer/Meat Lockers","Dennis Edwards Food Serv","Supplies and Services related expenditure","05/04/2021","87.02","Director of Adult Services"
"Type of Retail Store","Freezer/Meat Lockers","Dennis Edwards Food Serv","Supplies and Services related expenditure","05/04/2021","584.44","Director of Adult Services"
"Other Supplies","Misc Speciality Retail","Amznmktplace","Supplies and Services related expenditure","05/04/2021","58.32","Director of Public Health"
"Other Supplies","Misc Speciality Retail","Amznmktplace","Supplies and Services related expenditure","05/04/2021","79.31","Director of Housing, Neighbourhood and Building Services"
"Type of Retail Store","Grocery Stores/Supermarkets","Tesco Stores 4579","Premises related expenditure","05/04/2021","2.00","Director of Children's Services and Education"
"Type of Retail Store","Grocery Stores/Supermarkets","Tesco Stores 4579","Agency and Third Party Payments related expenditure","05/04/2021","3.75","Director of Children's Services and Education"
"Type of Retail Store","Grocery Stores/Supermarkets","Tesco Stores 4579","Supplies and Services related expenditure","05/04/2021","1.75","Director of Children's Services and Education"
"Type of Retail Store","Grocery Stores/Supermarkets","Tesco Stores 4579","Supplies and Services related expenditure","05/04/2021","1.50","Director of Children's Services and Education"
"Type of Retail Store","Grocery Stores/Supermarkets","Tesco Stores 4579","Supplies and Services related expenditure","05/04/2021","14.08","Director of Children's Services and Education"
"Other Supplies","Misc Gen Merchandise - Def","B&m Retail Ltd","Supplies and Services related expenditure","05/04/2021","5.97","Director of Children's Services and Education"
"Digital Goods","Digital Goods - Games","Cdkeys.Com","Agency and Third Party Payments related expenditure","05/04/2021","10.99","Director of Children's Services and Education"
"Eating And Drinking Places","Fast Food Restaurants","McDonalds","Agency and Third Party Payments related expenditure","05/04/2021","10.00","Director of Children's Services and Education"
"Eating And Drinking Places","Fast Food Restaurants","McDonalds","Agency and Third Party Payments related expenditure","05/04/2021","3.87","Director of Children's Services and Education"
"Type of Retail Store","Sporting Goods Stores","Portsmouth Golf Centre","Agency and Third Party Payments related expenditure","05/04/2021","6.00","Director of Children's Services and Education"
"Type of Retail Store","Sporting Goods Stores","Portsmouth Golf Centre","Agency and Third Party Payments related expenditure","05/04/2021","6.00","Director of Children's Services and Education"
"Type of Retail Store","Sporting Goods Stores","Portsmouth Golf Centre","Agency and Third Party Payments related expenditure","05/04/2021","6.00","Director of Children's Services and Education"
"Digital Goods","Digital Goods - Games","Cdkeys.Com","Agency and Third Party Payments related expenditure","05/04/2021","22.99","Director of Children's Services and Education"
"Type of Retail Store","Grocery Stores/Supermarkets","Wm Morrisons Store","Supplies and Services related expenditure","05/04/2021","17.98","Director of Children's Services and Education"
"Type of Retail Store","Grocery Stores/Supermarkets","Wm Morrisons Store","Supplies and Services related expenditure","05/04/2021","63.51","Director of Children's Services and Education"
"Business To Business Facility/","Industrial Supplies - Def","Arco Limited (Ahpp)","Supplies and Services related expenditure","01/04/2021","7.57","Director of Housing, Neighbourhood and Building Services"
"Business To Business Facility/","Industrial Supplies - Def","Arco Limited (Ahpp)","Supplies and Services related expenditure","05/04/2021","30.50","Director of Housing, Neighbourhood and Building Services"
"Digital Goods","Digital Goods - Media, Books, Movies, Music","Amzn Digital 35312477661","Agency and Third Party Payments related expenditure","05/04/2021","10.99","Director of Children's Services and Education"
"Other Supplies","Misc Speciality Retail","Amazon.Co.Uk","Premises related expenditure","05/04/2021","16.99","Director of Children's Services and Education"
"Facilities/Repair Supplies","Hardware Stores","Toolstation Uk","Supplies and Services related expenditure","06/04/2021","3.23","Director of Housing, Neighbourhood and Building Services"
"Facilities/Repair Supplies","Hardware Stores","Toolstation Uk","Supplies and Services related expenditure","06/04/2021","3.22","Director of Housing, Neighbourhood and Building Services"
"Facilities/Repair Supplies","Hardware Stores","Toolstation Uk","Supplies and Services related expenditure","06/04/2021","8.39","Director of Housing, Neighbourhood and Building Services"
"Facilities/Repair Supplies","Hardware Stores","Toolstation Uk","Supplies and Services related expenditure","06/04/2021","8.39","Director of Housing, Neighbourhood and Building Services"
"Utility","Phone Serv/Equip Utility","Www.Broadbandbuyer.Co.Uk","Supplies and Services related expenditure","06/04/2021","205.40","Director of Housing, Neighbourhood and Building Services"
"Business To Business Eqpt/Furn","Book Stores","Bookdepository.Com","Supplies and Services related expenditure","06/04/2021","-36.99","Director of Children's Services and Education"
"Medical","Lab/Med/Hospital Equipment","Wightman & Parrish","Premises related expenditure","06/04/2021","368.80","Director of Housing, Neighbourhood and Building Services"
"Auto/Vehicle Expenses","Auto Service Shops/Non Dealer","Kwik Fit","Transport related expenditure","06/04/2021","19.71","Director of Housing, Neighbourhood and Building Services"
"Auto/Vehicle Expenses","Auto Service Shops/Non Dealer","Kwik Fit","Transport related expenditure","06/04/2021","19.71","Director of Housing, Neighbourhood and Building Services"
"Auto/Vehicle Expenses","Auto Service Shops/Non Dealer","Kwik Fit","Transport related expenditure","06/04/2021","19.71","Director of Housing, Neighbourhood and Building Services"
"Transportation Conveyor","Transportation Svcs - Default","Aqua Cars","Supplies and Services related expenditure","06/04/2021","4.50","Director of Adult Services"
"Utility","Phone Serv/Equip Utility","Zoom.Us 888-799-9666","Supplies and Services related expenditure","06/04/2021","11.99","Director of Children's Services and Education"
"Type of Retail Store","Sporting Goods Stores","Decathlon UK Limited","Supplies and Services related expenditure","06/04/2021","57.94","Director of Children's Services and Education"
"Facilities/Repair Supplies","Home Supply Warehouse Stores","B & Q 1238","Premises related expenditure","06/04/2021","29.17","Director of Children's Services and Education"
"Government Service","Govt Serv - Default","Portsmouth City Co","Transport related expenditure","06/04/2021","31.67","Director of Children's Services and Education"
"Other Supplies","Misc Speciality Retail","Amznmktplace","Supplies and Services related expenditure","06/04/2021","27.99","Director of Adult Services"
"Medical","Lab/Med/Hospital Equipment","Wightman & Parrish","Premises related expenditure","06/04/2021","227.60","Director of Housing, Neighbourhood and Building Services"
"Facilities/Repair Supplies","Lawn/Garden Supply/Nursery","Merry Mower Services Lt","Supplies and Services related expenditure","06/04/2021","49.40","Director of Housing, Neighbourhood and Building Services"
"Miscellaneous","Continuity/Subscription Mercht","Amazon Prime","Supplies and Services related expenditure","06/04/2021","6.66","Director of Children's Services and Education"
"Business To Business Eqpt/Furn","Stationery/Office Supplies","Www.Banneruk.Com","Supplies and Services related expenditure","06/04/2021","0.84","Director of Regeneration"
"Business To Business Eqpt/Furn","Stationery/Office Supplies","Www.Banneruk.Com","Supplies and Services related expenditure","06/04/2021","38.50","Director of Housing, Neighbourhood and Building Services"
"Business To Business Eqpt/Furn","Stationery/Office Supplies","Www.Banneruk.Com","Supplies and Services related expenditure","06/04/2021","58.83","Director of Housing, Neighbourhood and Building Services"
"Type of Retail Store","Grocery Stores/Supermarkets","Tesco Store 3055","Supplies and Services related expenditure","06/04/2021","19.33","Director of Children's Services and Education"
"Type of Retail Store","Grocery Stores/Supermarkets","Tesco Store 3055","Supplies and Services related expenditure","06/04/2021","31.40","Director of Children's Services and Education"
"Other Supplies","Department Stores","Southern Co-Op 0328","Supplies and Services related expenditure","06/04/2021","49.00","Director of Children's Services and Education"
"Other Supplies","Department Stores","Southern Co-Op 0328","Supplies and Services related expenditure","06/04/2021","49.00","Director of Children's Services and Education"
"Type of Retail Store","Grocery Stores/Supermarkets","Wm Morrisons Store","Supplies and Services related expenditure","06/04/2021","25.28","Director of Housing, Neighbourhood and Building Services"
"Facilities/Repair Supplies","Lumber/Build. Supply Stores","Screwfix Direct","Supplies and Services related expenditure","06/04/2021","224.98","Director of Portsmouth International Port"
"Government Service","Schools - Default","Peta Ltd","Employees related expenditure","06/04/2021","424.00","Director of Portsmouth International Port"
"Business To Business Eqpt/Furn","Stationery/Office Supplies","Www.Banneruk.Com","Supplies and Services related expenditure","06/04/2021","15.64","Director of Adult Services"
"Business To Business Eqpt/Furn","Stationery/Office Supplies","Www.Banneruk.Com","Supplies and Services related expenditure","06/04/2021","22.35","Director of Adult Services"
"Auto/Vehicle Expenses","Toll And Bridge Fees","M6 Toll","Supplies and Services related expenditure","06/04/2021","5.75","Director of Children's Services and Education"
"Eating And Drinking Places","Fast Food Restaurants","McDonalds","Supplies and Services related expenditure","06/04/2021","13.11","Director of Children's Services and Education"
"Hotels And Motels","Lodging/Hotels/Motels/Resorts","Last Drop Village Hote","Supplies and Services related expenditure","06/04/2021","100.00","Director of Children's Services and Education"
"Other Supplies","Misc Speciality Retail","Amznmktplace","Supplies and Services related expenditure","06/04/2021","21.20","Director of Adult Services"
"Government Service","Govt Serv - Default","Hampshire County Counc","Premises related expenditure","06/04/2021","220.10","Director of Adult Services"
"Type of Retail Store","Grocery Stores/Supermarkets","Fruit Basket Ltd","Supplies and Services related expenditure","06/04/2021","2,353.59","Director of Adult Services"
"Type of Retail Store","Grocery Stores/Supermarkets","Asda Stores","Premises related expenditure","06/04/2021","13.81","Director of Children's Services and Education"
"Type of Retail Store","Grocery Stores/Supermarkets","Asda Stores","Premises related expenditure","06/04/2021","1.65","Director of Children's Services and Education"
"Type of Retail Store","Grocery Stores/Supermarkets","Asda Stores","Supplies and Services related expenditure","06/04/2021","2.08","Director of Children's Services and Education"
"Type of Retail Store","Grocery Stores/Supermarkets","Asda Stores","Supplies and Services related expenditure","06/04/2021","35.45","Director of Children's Services and Education"
"Type of Retail Store","Grocery Stores/Supermarkets","Lidl Gb Portsmouth","Supplies and Services related expenditure","06/04/2021","11.65","Director of Children's Services and Education"
"Type of Retail Store","Grocery Stores/Supermarkets","Lidl Gb Portsmouth","Supplies and Services related expenditure","06/04/2021","47.94","Director of Children's Services and Education"
"Type of Retail Store","Grocery Stores/Supermarkets","Farmfoods 750","Supplies and Services related expenditure","06/04/2021","35.43","Director of Children's Services and Education"
"Type of Retail Store","Grocery Stores/Supermarkets","Farmfoods 750","Supplies and Services related expenditure","06/04/2021","41.16","Director of Children's Services and Education"
"Facilities/Repair Supplies","Hardware Stores","Paypal","Premises related expenditure","06/04/2021","106.37","Director of Housing, Neighbourhood and Building Services"
"Type of Retail Store","Electronics Sales","Currys Online","Supplies and Services related expenditure","06/04/2021","507.49","Director of Children's Services and Education"
"Other Supplies","Misc Speciality Retail","Amznmktplace","Supplies and Services related expenditure","06/04/2021","21.66","Director of Adult Services"
"Transportation Conveyor","Parking Lots, Meters, Garages","3c_*portsmouth City Coun","Transport related expenditure","06/04/2021","7.08","Director of Children's Services and Education"
"Transportation Conveyor","Local Commuter Transport","Hovertravel Ltd","Transport related expenditure","06/04/2021","24.60","Director of Children's Services and Education"
"Business To Business Eqpt/Furn","Stationery/Office Supplies","Www.Banneruk.Com","Supplies and Services related expenditure","06/04/2021","6.63","Director of Regeneration"
"Facilities/Repair Supplies","Home Supply Warehouse Stores","B & Q 1260","Premises related expenditure","06/04/2021","68.55","Director of Children's Services and Education"
"Auto/Vehicle Expenses","Tire Retread/Repair Shops","Setyres","Supplies and Services related expenditure","06/04/2021","18.95","Director of Culture, Leisure & Regulatory Services"
"Type of Retail Store","Grocery Stores/Supermarkets","Asda Stores","Supplies and Services related expenditure","06/04/2021","3.30","Director of Adult Services"
"Other Supplies","Misc Speciality Retail","Amznmktplace","Premises related expenditure","06/04/2021","30.79","Director of Children's Services and Education"
"Other Supplies","Misc Gen Merchandise - Def","B&m Retail Ltd","Supplies and Services related expenditure","06/04/2021","15.11","Director of Adult Services"
"Transportation Conveyor","Passenger Railways","Swrailway Tck Off","Transport related expenditure","06/04/2021","91.20","Director of Children's Services and Education"
"Other Supplies","Misc Speciality Retail","Amznmktplace","Supplies and Services related expenditure","06/04/2021","4.96","Director of Housing, Neighbourhood and Building Services"
"Other Supplies","Misc Speciality Retail","Amznmktplace","Supplies and Services related expenditure","06/04/2021","4.96","Director of Housing, Neighbourhood and Building Services"
"Miscellaneous","Member Organizations - Def","Www.Ofcom.Org.Uk","Supplies and Services related expenditure","06/04/2021","150.00","Director of Regeneration"
"Auto/Vehicle Expenses","Automotive Tire Stores","Portsmouth - Protyre","Transport related expenditure","06/04/2021","41.67","Director of Housing, Neighbourhood and Building Services"
"Other Supplies","Misc Speciality Retail","Amznmktplace","Transport related expenditure","06/04/2021","58.29","Director of Housing, Neighbourhood and Building Services"
"Government Service","Govt Serv - Default","Hampshire County Counc","Supplies and Services related expenditure","06/04/2021","28.93","Director of Children's Services and Education"
"Utility","Phone Serv/Equip Utility","Zoom.Us 888-799-9666","Supplies and Services related expenditure","06/04/2021","119.90","Director of Children's Services and Education"
"Type of Retail Store","Grocery Stores/Supermarkets","Tesco Stores 5153","Supplies and Services related expenditure","06/04/2021","12.60","Director of Children's Services and Education"
"Facilities/Repair Supplies","Lumber/Build. Supply Stores","C.E.F. (Portsmouth)","Premises related expenditure","06/04/2021","11.25","Director of Adult Services"
"Type of Retail Store","Grocery Stores/Supermarkets","Tesco Stores 4579","Supplies and Services related expenditure","06/04/2021","32.50","Director of Adult Services"
"Miscellaneous","Continuity/Subscription Mercht","Amazon Prime","Supplies and Services related expenditure","06/04/2021","-6.66","Director of Regeneration"
"Miscellaneous","Member Organizations - Def","Www.Cscs.Uk.Com","Supplies and Services related expenditure","06/04/2021","30.00","Director of Regeneration"
"Personal Service Provider","Mgmt/Consult/Public Rel Ser","Get Licensed","Supplies and Services related expenditure","06/04/2021","41.67","Director of Children's Services and Education"
"Type of Retail Store","Electronics Sales","Currys Online","Supplies and Services related expenditure","06/04/2021","349.17","Director of Children's Services and Education"
"Type of Retail Store","Grocery Stores/Supermarkets","Tesco Store 3048","Supplies and Services related expenditure","06/04/2021","120.00","Director of Children's Services and Education"
"Business To Business Facility/","Industrial Supplies - Def","Arco Limited (Sap)","Supplies and Services related expenditure","06/04/2021","-9.00","Director of Housing, Neighbourhood and Building Services"
"Business To Business Facility/","Industrial Supplies - Def","Arco Limited (Sap)","Supplies and Services related expenditure","06/04/2021","61.19","Director of Housing, Neighbourhood and Building Services"
"Eating And Drinking Places","Fast Food Restaurants","McDonalds","Agency and Third Party Payments related expenditure","06/04/2021","5.19","Director of Children's Services and Education"
"Eating And Drinking Places","Fast Food Restaurants","McDonalds","Agency and Third Party Payments related expenditure","06/04/2021","1.98","Director of Children's Services and Education"
"Type of Retail Store","Grocery Stores/Supermarkets","Wm Morrisons Store","Agency and Third Party Payments related expenditure","06/04/2021","10.00","Director of Children's Services and Education"
"Eating And Drinking Places","Fast Food Restaurants","Subway 44472 Ocean Park","Agency and Third Party Payments related expenditure","06/04/2021","13.22","Director of Children's Services and Education"
"Other Supplies","Misc Gen Merchandise - Def","B&m Retail Ltd","Premises related expenditure","06/04/2021","16.66","Director of Children's Services and Education"
"Eating And Drinking Places","Fast Food Restaurants","McDonalds","Agency and Third Party Payments related expenditure","06/04/2021","22.30","Director of Children's Services and Education"
"Eating And Drinking Places","Fast Food Restaurants","McDonalds","Agency and Third Party Payments related expenditure","06/04/2021","4.73","Director of Children's Services and Education"
"Business To Business Eqpt/Furn","Stationery/Office Supplies","Www.Banneruk.Com","Supplies and Services related expenditure","06/04/2021","2.52","Director of Regeneration"
"Type of Retail Store","Grocery Stores/Supermarkets","Asda Superstore","Supplies and Services related expenditure","06/04/2021","21.35","Director of Children's Services and Education"
"Business To Business Eqpt/Furn","Stationery/Office Supplies","Www.Staples.Co.Uk","Supplies and Services related expenditure","04/04/2021","33.32","Director of Regeneration"
"Business To Business Facility/","Electrical Parts/Equipment","Premier Farnell","Supplies and Services related expenditure","06/04/2021","196.94","Director of Regeneration"
"Hotels And Motels","Premier Travel Inns","Premier Inn 44537180","Agency and Third Party Payments related expenditure","06/04/2021","372.38","Director of Housing, Neighbourhood and Building Services"
"Hotels And Motels","Travelodge","Travelodge Gb0000","Agency and Third Party Payments related expenditure","06/04/2021","-131.25","Director of Housing, Neighbourhood and Building Services"
"Hotels And Motels","Travelodge","Travelodge Gb0000","Agency and Third Party Payments related expenditure","06/04/2021","-931.19","Director of Housing, Neighbourhood and Building Services"
"Government Service","Colleges/Univ/Jc/Profession","Paypal","Supplies and Services related expenditure","06/04/2021","4.99","Director of Housing, Neighbourhood and Building Services"
"Equipment And Furniture","Household Appliance Stores","Tlc Southern","Supplies and Services related expenditure","07/04/2021","9.30","Director of Housing, Neighbourhood and Building Services"
"Facilities/Repair Supplies","Lumber/Build. Supply Stores","Screwfix Direct","Supplies and Services related expenditure","07/04/2021","11.57","Director of Housing, Neighbourhood and Building Services"
"Medical","Lab/Med/Hospital Equipment","Wightman & Parrish","Premises related expenditure","07/04/2021","962.16","Director of Housing, Neighbourhood and Building Services"
"Business Expenses/Services","Stationery Stores","Manutan UK Ltd","Supplies and Services related expenditure","07/04/2021","377.98","Director of Housing, Neighbourhood and Building Services"
"Other Supplies","Misc Speciality Retail","Amznmktplace","Supplies and Services related expenditure","07/04/2021","16.20","Director of Adult Services"
"Facilities/Repair Supplies","Lawn/Garden Supply/Nursery","Www.Tudorenvironmental","Supplies and Services related expenditure","07/04/2021","507.88","Director of Culture, Leisure & Regulatory Services"
"Facilities/Repair Supplies","Lawn/Garden Supply/Nursery","Www.Pitchcare.Com","Supplies and Services related expenditure","07/04/2021","720.70","Director of Culture, Leisure & Regulatory Services"
"Facilities/Repair Supplies","Lawn/Garden Supply/Nursery","Carters Of Swanwic","Supplies and Services related expenditure","07/04/2021","151.86","Director of Housing, Neighbourhood and Building Services"
"Type of Retail Store","Grocery Stores/Supermarkets","Aldi Stores Ltd","Supplies and Services related expenditure","07/04/2021","27.22","Director of Adult Services"
"Other Supplies","Misc Speciality Retail","Www.Rainbowsafetey.Co.Uk","Supplies and Services related expenditure","07/04/2021","33.18","Director of Culture, Leisure & Regulatory Services"
"Other Supplies","Catalog Merchant","Www.Nisbets.Com","Supplies and Services related expenditure","07/04/2021","169.95","Director of Adult Services"
"Business To Business Facility/","Industrial Supplies - Def","Arco Limited (Ahpp)","Supplies and Services related expenditure","07/04/2021","57.02","Director of Housing, Neighbourhood and Building Services"
"Medical","Lab/Med/Hospital Equipment","Wightman & Parrish","Premises related expenditure","07/04/2021","192.03","Director of Housing, Neighbourhood and Building Services"
"Personal Service Provider","Commercial Photo/Art/Graph","Sq *portsmouth Print Shop","Supplies and Services related expenditure","07/04/2021","60.00","Director of Adult Services"
"Business Services","Advertising Services","Google Ads5247259773","Supplies and Services related expenditure","07/04/2021","500.00","Director of Children's Services and Education"
"Medical","Lab/Med/Hospital Equipment","Wightman & Parrish","Supplies and Services related expenditure","07/04/2021","7.39","Director of Adult Services"
"Other Supplies","Department Stores","The Range","Agency and Third Party Payments related expenditure","07/04/2021","7.50","Director of Children's Services and Education"
"Miscellaneous","Civic/Social/Fraternal Assc","Andrew Simpson Watersp","Agency and Third Party Payments related expenditure","07/04/2021","12.50","Director of Children's Services and Education"
"Miscellaneous","Sport/Recreational Camps","Www.Meonsprings.Com","Agency and Third Party Payments related expenditure","07/04/2021","45.00","Director of Children's Services and Education"
"Other Supplies","Department Stores","The Range","Supplies and Services related expenditure","07/04/2021","52.88","Director of Children's Services and Education"
"Type of Retail Store","Grocery Stores/Supermarkets","Wm Morrisons Store","Supplies and Services related expenditure","07/04/2021","3.71","Director of Children's Services and Education"
"Type of Retail Store","Grocery Stores/Supermarkets","Wm Morrisons Store","Supplies and Services related expenditure","07/04/2021","25.88","Director of Children's Services and Education"
"Type of Retail Store","Grocery Stores/Supermarkets","Wm Morrisons Store","Supplies and Services related expenditure","07/04/2021","57.49","Director of Children's Services and Education"
"Other Supplies","Department Stores","The Range","Premises related expenditure","07/04/2021","9.15","Director of Children's Services and Education"
"Amusement/Entertainment","Member Clubs/Sport/Rec/Golf","Puregym Limited","Supplies and Services related expenditure","07/04/2021","219.90","Director of Children's Services and Education"
"Automobiles and Vehicles","Misc Auto Dealers - Default","Dallas Auto Parts","Supplies and Services related expenditure","07/04/2021","81.67","Director of Culture, Leisure & Regulatory Services"
"Miscellaneous","Continuity/Subscription Mercht","Amazon Prime Amzn.Co.Uk/P","Supplies and Services related expenditure","07/04/2021","-6.66","Director of Children's Services and Education"
"Other Supplies","Misc Gen Merchandise - Def","Chums Ltd","Supplies and Services related expenditure","07/04/2021","25.85","Director of Adult Services"
"Other Supplies","Misc Speciality Retail","Amznmktplace","Supplies and Services related expenditure","07/04/2021","20.82","Director of Housing, Neighbourhood and Building Services"
"Type of Retail Store","Grocery Stores/Supermarkets","Tesco Stores 4611","Supplies and Services related expenditure","07/04/2021","15.00","Director of Children's Services and Education"
"Facilities/Repair Services","Spec Contractors - Default","Christie Intruder Alar","Supplies and Services related expenditure","07/04/2021","395.76","Director of Housing, Neighbourhood and Building Services"
"Type of Retail Store","Grocery Stores/Supermarkets","Tesco Store 3055","Supplies and Services related expenditure","07/04/2021","7.50","Director of Public Health"
"Medical","Lab/Med/Hospital Equipment","Wightman & Parrish Ltd","Supplies and Services related expenditure","07/04/2021","80.58","Director of Adult Services"
"Medical","Lab/Med/Hospital Equipment","Wightman & Parrish Ltd","Premises related expenditure","07/04/2021","164.16","Director of Adult Services"
"Medical","Lab/Med/Hospital Equipment","Wightman & Parrish Ltd","Premises related expenditure","07/04/2021","30.11","Director of Portsmouth International Port"
"Facilities/Repair Supplies","Hardware Stores","Addison Saws Ltd","Premises related expenditure","07/04/2021","169.34","Director of Portsmouth International Port"
"Business To Business Facility/","Electrical Parts/Equipment","Rs Components","Premises related expenditure","07/04/2021","436.50","Director of Portsmouth International Port"
"Other Supplies","Misc Speciality Retail","Amznmktplace","Supplies and Services related expenditure","07/04/2021","29.10","Director of Adult Services"
"Other Supplies","Misc Gen Merchandise - Def","Sq *southsea Pet Sitting","Agency and Third Party Payments related expenditure","07/04/2021","-50.00","Director of Adult Services"
"Eating And Drinking Places","Fast Food Restaurants","McDonalds","Supplies and Services related expenditure","07/04/2021","10.12","Director of Children's Services and Education"
"Other Supplies","Misc Gen Merchandise - Def","Design Supply","Supplies and Services related expenditure","07/04/2021","104.70","Director of Portsmouth International Port"
"Other Supplies","Department Stores","Safetysuppl","Supplies and Services related expenditure","07/04/2021","108.95","Director of Portsmouth International Port"
"Type of Retail Store","Grocery Stores/Supermarkets","Sainsburys S/mkts","Supplies and Services related expenditure","07/04/2021","2.83","Director of Children's Services and Education"
"Government Service","Govt Serv - Default","Portsmouth City Co","Transport related expenditure","07/04/2021","10.00","Director of Children's Services and Education"
"Government Service","Govt Serv - Default","Pcc Moto Payment","Premises related expenditure","07/04/2021","658.26","Director of Children's Services and Education"
"Business To Business Facility/","Hardware Equipment/Supplies","Ultra Secure Ltd","Supplies and Services related expenditure","07/04/2021","251.66","Director of Housing, Neighbourhood and Building Services"
"Other Supplies","Misc Speciality Retail","Amznmktplace","Supplies and Services related expenditure","07/04/2021","12.72","Director of Regeneration"
"Government Service","Schools - Default","Westminster Insight","Supplies and Services related expenditure","07/04/2021","202.50","Director of Housing, Neighbourhood and Building Services"
"Auto/Vehicle Expenses","Automated Fuel Dispensers","Sainsburys S/Mkts","Transport related expenditure","07/04/2021","16.69","Director of Children's Services and Education"
"Eating And Drinking Places","Fast Food Restaurants","Subway","Supplies and Services related expenditure","07/04/2021","4.50","Director of Adult Services"
"Facilities/Repair Supplies","Hardware Stores","Teleshore Group","Supplies and Services related expenditure","07/04/2021","35.20","Director of Culture, Leisure & Regulatory Services"
"Facilities/Repair Supplies","Lawn/Garden Supply/Nursery","Www.Tudorenvironmental","Supplies and Services related expenditure","07/04/2021","159.30","Director of Culture, Leisure & Regulatory Services"
"Other Supplies","Misc Speciality Retail","Amznmktplace","Premises related expenditure","07/04/2021","24.99","Director of Children's Services and Education"
"Business To Business Eqpt/Furn","Computer Software Stores","Sp * Lo-Dough","Supplies and Services related expenditure","07/04/2021","45.48","Director of Children's Services and Education"
"Other Supplies","Discount Stores","Argos Ltd","Supplies and Services related expenditure","07/04/2021","77.00","Director of Children's Services and Education"
"Automobile Rental","Automobile Rental Agency","Southern Motor Contrac","Transport related expenditure","07/04/2021","3,614.27","Director of Regeneration"
"Automobile Rental","Automobile Rental Agency","Southern Motor Contrac","Transport related expenditure","07/04/2021","7,483.45","Director of Regeneration"
"Other Supplies","Misc Speciality Retail","Amznmktplace","Supplies and Services related expenditure","07/04/2021","8.04","Director of Housing, Neighbourhood and Building Services"
"Business To Business Facility/","Industrial Supplies - Def","Arco Limited (Ahpp)","Supplies and Services related expenditure","07/04/2021","16.19","Director of Housing, Neighbourhood and Building Services"
"Facilities/Repair Services","Small Appliance Repair Def","Hooper Services Ltd","Premises related expenditure","07/04/2021","23.50","Director of Adult Services"
"Other Supplies","Misc Speciality Retail","Amznmktplace Amazon.Co.Uk","Supplies and Services related expenditure","07/04/2021","32.38","Director of Children's Services and Education"
"Miscellaneous","Misc Personal Serv - Def","Iz *courtx Ltd","Agency and Third Party Payments related expenditure","07/04/2021","4.00","Director of Children's Services and Education"
"Other Supplies","Department Stores","Southern Co-Op 0009","Supplies and Services related expenditure","07/04/2021","4.68","Director of Children's Services and Education"
"Eating And Drinking Places","Eating Places/Restaurants","Canoe Lake Cafe","Agency and Third Party Payments related expenditure","07/04/2021","8.00","Director of Children's Services and Education"
"Eating And Drinking Places","Eating Places/Restaurants","Canoe Lake Cafe","Agency and Third Party Payments related expenditure","07/04/2021","9.30","Director of Children's Services and Education"
"Miscellaneous","Misc Personal Serv - Def","Iz *courtx Ltd","Agency and Third Party Payments related expenditure","07/04/2021","14.50","Director of Children's Services and Education"
"Eating And Drinking Places","Eating Places/Restaurants","Canoe Lake Cafe","Agency and Third Party Payments related expenditure","07/04/2021","28.80","Director of Children's Services and Education"
"Business To Business Facility/","Industrial Supplies - Def","Arco Limited (Ahpp)","Supplies and Services related expenditure","07/04/2021","9.80","Director of Housing, Neighbourhood and Building Services"
"Miscellaneous","Charitable/Soc Service Orgs","British Red Cross","Supplies and Services related expenditure","07/04/2021","126.00","Director of Housing, Neighbourhood and Building Services"
"Utility","Phone Serv/Equip Utility","Zoom.Us 888-799-9666","Supplies and Services related expenditure","07/04/2021","11.99","Director of Corporate Services"
"Utility","Phone Serv/Equip Utility","Zoom.Us 888-799-9666","Supplies and Services related expenditure","07/04/2021","11.99","Chief Exec"
"Eating And Drinking Places","Fast Food Restaurants","Subway","Supplies and Services related expenditure","07/04/2021","7.33","Director of Children's Services and Education"
"Type of Retail Store","Grocery Stores/Supermarkets","Co-Op Group Food","Supplies and Services related expenditure","07/04/2021","7.51","Director of Children's Services and Education"
"Business To Business Other Sup","Non-Durable Goods - Default","Www.Edensprings.Co.Uk","Supplies and Services related expenditure","07/04/2021","37.50","Director of Housing, Neighbourhood and Building Services"
"Other Supplies","Misc Speciality Retail","Amznmktplace","Supplies and Services related expenditure","07/04/2021","14.16","Director of Culture, Leisure & Regulatory Services"
"Business To Business Eqpt/Furn","Stationery/Office Supplies","Www.Banneruk.Com","Supplies and Services related expenditure","07/04/2021","15.32","Director of Children's Services and Education"
"Business To Business Eqpt/Furn","Stationery/Office Supplies","Www.Banneruk.Com","Supplies and Services related expenditure","07/04/2021","31.02","Director of Children's Services and Education"
"Business Expenses/Services","Postage Stamps","Post Office Counter","Supplies and Services related expenditure","07/04/2021","294.00","Director of Children's Services and Education"
"Facilities/Repair Supplies","Home Supply Warehouse Stores","B & Q 1260","Supplies and Services related expenditure","07/04/2021","8.05","Director of Housing, Neighbourhood and Building Services"
"Transportation Conveyor","Passenger Railways","Swrailwayselfserve","Transport related expenditure","07/04/2021","8.50","Director of Children's Services and Education"
"Business To Business Facility/","Industrial Supplies - Def","Arco Limited (Ahpp)","Supplies and Services related expenditure","01/04/2021","41.83","Director of Portsmouth International Port"
"Miscellaneous","Continuity/Subscription Mercht","Amazon Prime","Supplies and Services related expenditure","07/04/2021","6.66","Director of Adult Services"
"Business To Business Facility/","Electrical Parts/Equipment","Rs Components","Premises related expenditure","07/04/2021","206.70","Director of Portsmouth International Port"
"Business To Business Facility/","Industrial Supplies - Def","Arco Limited (Ahpp)","Supplies and Services related expenditure","07/04/2021","36.65","Director of Housing, Neighbourhood and Building Services"
"Business To Business Facility/","Industrial Supplies - Def","Arco Limited (Ahpp)","Supplies and Services related expenditure","07/04/2021","57.36","Director of Housing, Neighbourhood and Building Services"
"Business To Business Facility/","Industrial Supplies - Def","Arco Limited (Ahpp)","Supplies and Services related expenditure","07/04/2021","5,400.00","Chief Exec"
"Facilities/Repair Supplies","Hardware Stores","Toolstation Uk","Premises related expenditure","08/04/2021","1.65","Director of Adult Services"
"Other Supplies","Misc Gen Merchandise - Def","Clippasafe Ltd.","Premises related expenditure","08/04/2021","22.47","Director of Adult Services"
"Equipment And Furniture","Household Appliance Stores","Tlc Southern","Supplies and Services related expenditure","08/04/2021","111.20","Director of Housing, Neighbourhood and Building Services"
"Medical","Lab/Med/Hospital Equipment","Wightman & Parrish","Premises related expenditure","08/04/2021","79.60","Director of Housing, Neighbourhood and Building Services"
"Business Expenses/Services","Postage Stamps","Post Office Counter","Supplies and Services related expenditure","08/04/2021","6.85","Director of Adult Services"
"Facilities Maintenance","Clean/Maint/Janitoral Serv","Suez Recycling&recover","Premises related expenditure","08/04/2021","418.41","Director of Regeneration"
"Type of Retail Store","Sporting Goods Stores","Decathlon UK Limited","Transport related expenditure","08/04/2021","12.46","Director of Regeneration"
"Type of Retail Store","Electronics Sales","Currys Online","Supplies and Services related expenditure","08/04/2021","324.15","Director of Housing, Neighbourhood and Building Services"
"Other Supplies","Misc Speciality Retail","Amznmktplace","Supplies and Services related expenditure","08/04/2021","34.90","Director of Children's Services and Education"
"Facilities/Repair Supplies","Home Supply Warehouse Stores","B & Q 1260","Supplies and Services related expenditure","08/04/2021","19.57","Director of Regeneration"
"Other Supplies","Misc Speciality Retail","Amznmktplace","Supplies and Services related expenditure","08/04/2021","3.00","Director of Housing, Neighbourhood and Building Services"
"Other Supplies","Misc Speciality Retail","Amznmktplace","Supplies and Services related expenditure","08/04/2021","44.96","Director of Housing, Neighbourhood and Building Services"
"Eating And Drinking Places","Fast Food Restaurants","McDonalds","Agency and Third Party Payments related expenditure","08/04/2021","6.74","Director of Children's Services and Education"
"Eating And Drinking Places","Fast Food Restaurants","McDonalds","Agency and Third Party Payments related expenditure","08/04/2021","0.93","Director of Children's Services and Education"
"Type of Retail Store","Grocery Stores/Supermarkets","Tesco Stores 4611","Supplies and Services related expenditure","08/04/2021","40.00","Director of Children's Services and Education"
"Transportation Conveyor","Local Commuter Transport","Www.Hovertravel.Com","Transport related expenditure","08/04/2021","49.20","Director of Children's Services and Education"
"Utility","Phone Serv/Equip Utility","Pageone","Supplies and Services related expenditure","08/04/2021","31.14","Director of Culture, Leisure & Regulatory Services"
"Other Supplies","Misc Speciality Retail","Amznmktplace","Supplies and Services related expenditure","08/04/2021","37.11","Director of Children's Services and Education"
"Business To Business Facility/","Hardware Equipment/Supplies","Croma Locksmiths & Sec","Premises related expenditure","08/04/2021","497.20","Director of Housing, Neighbourhood and Building Services"
"Other Supplies","Misc Speciality Retail","Amznmktplace","Supplies and Services related expenditure","08/04/2021","58.85","Director of Corporate Services"
"Hotels And Motels","Lodging/Hotels/Motels/Resorts","Laguna Hotel","Supplies and Services related expenditure","08/04/2021","20.00","Director of Adult Services"
"Utility","Utilities/Elec/Gas/H2O/Sani","British Gas Otp","Supplies and Services related expenditure","08/04/2021","244.90","Director of Adult Services"
"Business To Business Facility/","Industrial Supplies - Def","Arco Limited (Ahpp)","Supplies and Services related expenditure","08/04/2021","34.65","Director of Housing, Neighbourhood and Building Services"
"Medical","Lab/Med/Hospital Equipment","Wightman & Parrish","Premises related expenditure","08/04/2021","179.30","Director of Housing, Neighbourhood and Building Services"
"Type of Retail Store","Grocery Stores/Supermarkets","Asda Stores","Supplies and Services related expenditure","08/04/2021","100.00","Director of Children's Services and Education"
"Business To Business Facility/","Electrical Parts/Equipment","Edmundson Electrical","Premises related expenditure","08/04/2021","36.72","Director of Portsmouth International Port"
"Business To Business Facility/","Electrical Parts/Equipment","Edmundson Electrical","Premises related expenditure","08/04/2021","46.27","Director of Portsmouth International Port"
"Business To Business Facility/","Electrical Parts/Equipment","Edmundson Electrical","Premises related expenditure","08/04/2021","162.17","Director of Portsmouth International Port"
"Business Services","Business Services - Default","Fast Key Services Limi","Supplies and Services related expenditure","08/04/2021","4.97","Director of Finance & Resources"
"Business Services","Business Services - Default","Fast Key Services Limi","Supplies and Services related expenditure","08/04/2021","1.13","Director of Finance & Resources"
"Miscellaneous","Charitable/Soc Service Orgs","Www.Cpag.Org.Uk","Supplies and Services related expenditure","08/04/2021","266.00","Director of Finance & Resources"
"Miscellaneous","Charitable/Soc Service Orgs","Www.Cpag.Org.Uk","Supplies and Services related expenditure","08/04/2021","8.99","Director of Finance & Resources"
"Medical","Lab/Med/Hospital Equipment","Wightman & Parrish","Premises related expenditure","08/04/2021","23.46","Director of Housing, Neighbourhood and Building Services"
"Facilities/Repair Supplies","Hardware Stores","Www Lsengineers Co Uk","Supplies and Services related expenditure","08/04/2021","60.00","Director of Housing, Neighbourhood and Building Services"
"Equipment And Furniture","Equip/Furn Rent/Lease Serv","Toolstoday.Co.Uk","Supplies and Services related expenditure","08/04/2021","63.01","Director of Housing, Neighbourhood and Building Services"
"Type of Retail Store","Grocery Stores/Supermarkets","Tesco Store 3539","Supplies and Services related expenditure","08/04/2021","-4.71","Director of Children's Services and Education"
"Type of Retail Store","Grocery Stores/Supermarkets","Tesco Stores 6002","Supplies and Services related expenditure","08/04/2021","2.63","Director of Children's Services and Education"
"Type of Retail Store","Grocery Stores/Supermarkets","Tesco Stores 6002","Supplies and Services related expenditure","08/04/2021","123.22","Director of Children's Services and Education"
"Other Supplies","Misc Speciality Retail","Www.Justgloves.Co.Uk","Premises related expenditure","08/04/2021","31.45","Director of Adult Services"
"Other Supplies","Wholesale Clubs","Blueleaf Limited","Premises related expenditure","08/04/2021","87.42","Director of Adult Services"
"Medical","Lab/Med/Hospital Equipment","Wightman & Parrish","Premises related expenditure","08/04/2021","1,354.48","Director of Adult Services"
"Type of Retail Store","Grocery Stores/Supermarkets","Tesco Store 3055","Supplies and Services related expenditure","08/04/2021","16.70","Director of Children's Services and Education"
"Facilities/Repair Supplies","Hardware Stores","Home Bargains","Supplies and Services related expenditure","08/04/2021","9.93","Director of Children's Services and Education"
"Facilities/Repair Supplies","Hardware Stores","Home Bargains","Premises related expenditure","08/04/2021","8.09","Director of Children's Services and Education"
"Facilities/Repair Supplies","Hardware Stores","Home Bargains","Supplies and Services related expenditure","08/04/2021","33.28","Director of Children's Services and Education"
"Facilities/Repair Supplies","Hardware Stores","Home Bargains","Supplies and Services related expenditure","08/04/2021","3.76","Director of Children's Services and Education"
"Facilities/Repair Supplies","Lawn/Garden Supply/Nursery","Www.Tudorenvironmental","Supplies and Services related expenditure","08/04/2021","78.25","Director of Culture, Leisure & Regulatory Services"
"Type of Retail Store","Grocery Stores/Supermarkets","Fruit Basket Ltd","Supplies and Services related expenditure","08/04/2021","143.60","Director of Culture, Leisure & Regulatory Services"
"Facilities/Repair Supplies","Lawn/Garden Supply/Nursery","Www.Tudorenvironmental","Supplies and Services related expenditure","08/04/2021","205.00","Director of Culture, Leisure & Regulatory Services"
"Facilities/Repair Supplies","Lawn/Garden Supply/Nursery","Www.Tudorenvironmental","Supplies and Services related expenditure","08/04/2021","406.71","Director of Culture, Leisure & Regulatory Services"
"Transportation Conveyor","Taxicabs/Limousines","Uber *trip","Transport related expenditure","08/04/2021","3.08","Director of Children's Services and Education"
"Type of Retail Store","Grocery Stores/Supermarkets","Tesco Stores 6577","Supplies and Services related expenditure","08/04/2021","12.50","Director of Children's Services and Education"
"Miscellaneous","Member Organizations - Def","Www.Eelga.Gov.Uk","Employees related expenditure","08/04/2021","149.00","Director of Corporate Services"
"Personal Service Provider","Professional Services - Def","Www.Gov.Uk","Supplies and Services related expenditure","08/04/2021","1.50","Director of Adult Services"
"Government Service","Govt Serv - Default","Pcc Internet Payment","Supplies and Services related expenditure","08/04/2021","44.00","Director of Children's Services and Education"
"Type of Retail Store","Grocery Stores/Supermarkets","Tesco Gift Card","Supplies and Services related expenditure","08/04/2021","50.00","Director of Children's Services and Education"
"Other Supplies","Misc Speciality Retail","Amznmktplace Amazon.Co.Uk","Supplies and Services related expenditure","08/04/2021","22.42","Director of Adult Services"
"Transportation Conveyor","Local Commuter Transport","Www.Hovertravel.Com","Transport related expenditure","08/04/2021","20.50","Director of Children's Services and Education"
"Other Supplies","Department Stores","Www.Johnlewis.Com","Supplies and Services related expenditure","08/04/2021","316.50","Director of Children's Services and Education"
"Type of Retail Store","Grocery Stores/Supermarkets","Tesco Store 3066","Supplies and Services related expenditure","08/04/2021","27.27","Director of Children's Services and Education"
"Facilities/Repair Supplies","Hardware Stores","Home Bargains","Supplies and Services related expenditure","08/04/2021","2.90","Director of Children's Services and Education"
"Facilities/Repair Supplies","Hardware Stores","Home Bargains","Supplies and Services related expenditure","08/04/2021","10.40","Director of Children's Services and Education"
"Facilities/Repair Supplies","Hardware Stores","Home Bargains","Supplies and Services related expenditure","08/04/2021","9.32","Director of Children's Services and Education"
"Type of Retail Store","Grocery Stores/Supermarkets","Aldi Stores Ltd","Supplies and Services related expenditure","08/04/2021","13.25","Director of Children's Services and Education"
"Type of Retail Store","Grocery Stores/Supermarkets","Aldi Stores Ltd","Supplies and Services related expenditure","08/04/2021","14.78","Director of Children's Services and Education"
"Miscellaneous","Other Direct Marketers","Amazon.Co.Uk","Premises related expenditure","08/04/2021","45.82","Director of Children's Services and Education"
"Type of Retail Store","Grocery Stores/Supermarkets","Tesco Store 3048","Supplies and Services related expenditure","08/04/2021","20.00","Director of Children's Services and Education"
"Other Supplies","Misc Gen Merchandise - Def","B&m 566 - Farlington","Supplies and Services related expenditure","08/04/2021","207.05","Director of Children's Services and Education"
"Equipment And Furniture","Furniture/Equip Stores","Bed Hunters","Supplies and Services related expenditure","08/04/2021","382.99","Director of Children's Services and Education"
"Utility","Phone Serv/Equip Utility","Vodafone Ltd","Supplies and Services related expenditure","08/04/2021","134.46","Director of Children's Services and Education"
"Type of Retail Store","Misc Food Stores - Default","Tonys Food Store","Supplies and Services related expenditure","08/04/2021","2.59","Director of Adult Services"
"Medical","Lab/Med/Hospital Equipment","Wightman & Parrish","Premises related expenditure","08/04/2021","50.71","Director of Housing, Neighbourhood and Building Services"
"Government Service","Govt Serv - Default","Www.Southampton.Gov.Uk","Supplies and Services related expenditure","08/04/2021","11.00","Director of Regeneration"
"Other Supplies","Misc Speciality Retail","Amznmktplace","Supplies and Services related expenditure","08/04/2021","6.11","Director of Housing, Neighbourhood and Building Services"
"Facilities/Repair Supplies","Hardware Stores","Www Lsengineers Co Uk","Supplies and Services related expenditure","08/04/2021","23.97","Director of Housing, Neighbourhood and Building Services"
"Other Supplies","Misc Speciality Retail","Amznmktplace","Supplies and Services related expenditure","08/04/2021","90.23","Director of Adult Services"
"Other Supplies","Misc Speciality Retail","Amznmktplace","Supplies and Services related expenditure","08/04/2021","7.46","Director of Adult Services"
"Facilities/Repair Supplies","Lawn/Garden Supply/Nursery","Www.Pitchcare.Com","Supplies and Services related expenditure","08/04/2021","302.35","Director of Housing, Neighbourhood and Building Services"
"Facilities/Repair Supplies","Home Supply Warehouse Stores","B & Q 1260","Premises related expenditure","08/04/2021","57.48","Director of Children's Services and Education"
"Type of Retail Store","Grocery Stores/Supermarkets","Tesco Stores 4579","Premises related expenditure","08/04/2021","10.00","Director of Children's Services and Education"
"Type of Retail Store","Grocery Stores/Supermarkets","Tesco Stores 4579","Supplies and Services related expenditure","08/04/2021","7.92","Director of Children's Services and Education"
"Type of Retail Store","Grocery Stores/Supermarkets","Tesco Stores 4579","Premises related expenditure","08/04/2021","2.38","Director of Children's Services and Education"
"Type of Retail Store","Grocery Stores/Supermarkets","Tesco Stores 4579","Supplies and Services related expenditure","08/04/2021","5.00","Director of Children's Services and Education"
"Type of Retail Store","Grocery Stores/Supermarkets","Tesco Stores 4579","Supplies and Services related expenditure","08/04/2021","70.30","Director of Children's Services and Education"
"Facilities/Repair Services","Spec Contractors - Default","Signway Supplies (Datc","Premises related expenditure","08/04/2021","89.32","Director of Regeneration"
"Miscellaneous","Member Organizations - Def","Www.Cscs.Uk.Com","Supplies and Services related expenditure","08/04/2021","36.00","Director of Regeneration"
"Type of Retail Store","Electronics Sales","Currys Online","Supplies and Services related expenditure","08/04/2021","407.49","Director of Children's Services and Education"
"Transportation Conveyor","Local Commuter Transport","Hovertravel Ltd","Transport related expenditure","08/04/2021","24.60","Director of Children's Services and Education"
"Other Supplies","Misc Speciality Retail","Amznmktplace","Supplies and Services related expenditure","08/04/2021","46.66","Director of Children's Services and Education"
"Medical","Dentists/Orthodontisis","Southsea Orthodontics","Supplies and Services related expenditure","08/04/2021","100.00","Director of Children's Services and Education"
"Auto/Vehicle Expenses","Auto Service Shops/Non Dealer","Solent Motor Services","Transport related expenditure","08/04/2021","73.00","Director of Housing, Neighbourhood and Building Services"
"Business To Business Eqpt/Furn","Stationery/Office Supplies","Www.Banneruk.Com","Supplies and Services related expenditure","08/04/2021","14.70","Director of Children's Services and Education"
"Other Supplies","Misc Speciality Retail","Amznbusiness","Supplies and Services related expenditure","08/04/2021","126.61","Director of Corporate Services"
"Business To Business Facility/","Industrial Supplies - Def","Arco Limited (Ahpp)","Supplies and Services related expenditure","01/04/2021","40.65","Director of Housing, Neighbourhood and Building Services"
"Business To Business Facility/","Electrical Parts/Equipment","Rs Components","Supplies and Services related expenditure","08/04/2021","112.00","Director of Housing, Neighbourhood and Building Services"
"Business To Business Facility/","Industrial Supplies - Def","Arco Limited (Ahpp)","Supplies and Services related expenditure","08/04/2021","48.88","Director of Housing, Neighbourhood and Building Services"
"Other Supplies","Misc Speciality Retail","Amznmktplace Amazon.Co.Uk","Supplies and Services related expenditure","08/04/2021","24.99","Director of Adult Services"
"Business Services","Photofinish Labs/Dev","Snapfish Uk","Agency and Third Party Payments related expenditure","08/04/2021","11.90","Director of Children's Services and Education"
"Business Services","Photofinish Labs/Dev","Snapfish Uk","Agency and Third Party Payments related expenditure","08/04/2021","11.90","Director of Children's Services and Education"
"Business Services","Photofinish Labs/Dev","Snapfish Uk","Agency and Third Party Payments related expenditure","08/04/2021","11.91","Director of Children's Services and Education"
"Business To Business Facility/","Industrial Supplies - Def","Arco Limited (Ahpp)","Supplies and Services related expenditure","08/04/2021","20.48","Director of Regeneration"
"Other Supplies","Misc Speciality Retail","Amznbusiness","Supplies and Services related expenditure","08/04/2021","56.99","Director of Corporate Services"
"Medical","Lab/Med/Hospital Equipment","Wightman & Parrish","Premises related expenditure","09/04/2021","27.69","Director of Housing, Neighbourhood and Building Services"
"Medical","Lab/Med/Hospital Equipment","Wightman & Parrish","Premises related expenditure","09/04/2021","215.10","Director of Housing, Neighbourhood and Building Services"
"Other Supplies","Misc Speciality Retail","Amznmktplace","Supplies and Services related expenditure","09/04/2021","37.48","Director of Adult Services"
"Other Supplies","Misc Speciality Retail","Amznmktplace","Supplies and Services related expenditure","09/04/2021","106.64","Director of Adult Services"
"Equipment And Furniture","Furniture/Equip Stores","Greatbeanbags Psl","Supplies and Services related expenditure","09/04/2021","119.99","Director of Children's Services and Education"
"Other Supplies","Discount Stores","Argos Ltd","Supplies and Services related expenditure","09/04/2021","144.12","Director of Children's Services and Education"
"Type of Retail Store","Grocery Stores/Supermarkets","Fruit Basket Ltd","Supplies and Services related expenditure","09/04/2021","59.72","Director of Adult Services"
"Business To Business Eqpt/Furn","Stationery/Office Supplies","Www.Banneruk.Com","Supplies and Services related expenditure","09/04/2021","26.40","Director of Regeneration"
"Facilities/Repair Services","Landscape/Horticultural Se","Inturf","Supplies and Services related expenditure","09/04/2021","212.50","Director of Culture, Leisure & Regulatory Services"
"Facilities/Repair Supplies","Lawn/Garden Supply/Nursery","Kings Worthy Garden Mach","Supplies and Services related expenditure","09/04/2021","27.46","Director of Housing, Neighbourhood and Building Services"
"Business Services","Business Services - Default","Www.Planning.Co","Supplies and Services related expenditure","09/04/2021","408.33","Capital - Children, Families & Education"
"Facilities/Repair Supplies","Home Supply Warehouse Stores","B & Q 1238","Supplies and Services related expenditure","09/04/2021","141.66","Director of Children's Services and Education"
"Other Supplies","Misc Speciality Retail","Amznbusiness","Supplies and Services related expenditure","09/04/2021","4.98","Director of Children's Services and Education"
"Miscellaneous","Continuity/Subscription Mercht","Tsohost","Supplies and Services related expenditure","09/04/2021","75.60","Director of Children's Services and Education"
"Transportation Conveyor","Passenger Railways","Swrailway Tck Off","Transport related expenditure","09/04/2021","36.80","Director of Children's Services and Education"
"Type of Retail Store","Grocery Stores/Supermarkets","Lidl Gb Portsmouth","Supplies and Services related expenditure","09/04/2021","6.08","Director of Children's Services and Education"
"Type of Retail Store","Grocery Stores/Supermarkets","Lidl Gb Portsmouth","Supplies and Services related expenditure","09/04/2021","0.41","Director of Children's Services and Education"
"Type of Retail Store","Grocery Stores/Supermarkets","Wm Morrisons Store","Supplies and Services related expenditure","09/04/2021","2.92","Director of Children's Services and Education"
"Type of Retail Store","Grocery Stores/Supermarkets","Wm Morrisons Store","Supplies and Services related expenditure","09/04/2021","3.90","Director of Children's Services and Education"
"Type of Retail Store","Grocery Stores/Supermarkets","Wm Morrisons Store","Supplies and Services related expenditure","09/04/2021","4.38","Director of Children's Services and Education"
"Type of Retail Store","Grocery Stores/Supermarkets","Wm Morrisons Store","Supplies and Services related expenditure","09/04/2021","40.58","Director of Children's Services and Education"
"Other Supplies","Misc Speciality Retail","Amz*infiland-Llc","Supplies and Services related expenditure","09/04/2021","-14.16","Director of Culture, Leisure & Regulatory Services"
"Other Supplies","Misc Speciality Retail","Amz*zhiyun Authorized","Supplies and Services related expenditure","09/04/2021","-73.42","Director of Culture, Leisure & Regulatory Services"
"Business To Business Eqpt/Furn","Stationery/Office Supplies","Www.Banneruk.Com","Supplies and Services related expenditure","09/04/2021","12.66","Director of Housing, Neighbourhood and Building Services"
"Business To Business Eqpt/Furn","Stationery/Office Supplies","Www.Banneruk.Com","Supplies and Services related expenditure","09/04/2021","58.83","Director of Housing, Neighbourhood and Building Services"
"Business Expenses/Services","Postage Stamps","Post Office Counter","Supplies and Services related expenditure","09/04/2021","101.00","Director of Children's Services and Education"
"Other Supplies","Discount Stores","Argos Ltd","Supplies and Services related expenditure","09/04/2021","85.79","Director of Children's Services and Education"
"Other Supplies","Discount Stores","Argos Ltd","Supplies and Services related expenditure","09/04/2021","145.83","Director of Children's Services and Education"
"Other Supplies","Discount Stores","Poundwise Milton","Supplies and Services related expenditure","09/04/2021","22.21","Director of Children's Services and Education"
"Type of Retail Store","Grocery Stores/Supermarkets","Www.Iceland.Co.Uk","Supplies and Services related expenditure","09/04/2021","-4.35","Director of Adult Services"
"Type of Retail Store","Grocery Stores/Supermarkets","Www.Iceland.Co.Uk","Supplies and Services related expenditure","09/04/2021","7.00","Director of Adult Services"
"Type of Retail Store","Grocery Stores/Supermarkets","Www.Iceland.Co.Uk","Supplies and Services related expenditure","09/04/2021","96.60","Director of Adult Services"
"Business To Business Facility/","Industrial Supplies - Def","Arco Limited (Ahpp)","Supplies and Services related expenditure","09/04/2021","29.40","Director of Portsmouth International Port"
"Business To Business Facility/","Industrial Supplies - Def","Arco Limited (Ahpp)","Supplies and Services related expenditure","09/04/2021","39.17","Director of Portsmouth International Port"
"Equipment And Furniture","Household Appliance Stores","Machine Mart Ltd","Supplies and Services related expenditure","09/04/2021","189.98","Director of Portsmouth International Port"
"Equipment And Furniture","Household Appliance Stores","Machine Mart Ltd","Premises related expenditure","09/04/2021","114.99","Director of Portsmouth International Port"
"Equipment And Furniture","Equip/Furn Rent/Lease Serv","Bs34 Ltd","Premises related expenditure","09/04/2021","780.10","Director of Portsmouth International Port"
"Other Supplies","Misc Speciality Retail","Timpson Ltd","Supplies and Services related expenditure","09/04/2021","17.50","Director of Housing, Neighbourhood and Building Services"
"Medical","Lab/Med/Hospital Equipment","Wightman & Parrish","Premises related expenditure","09/04/2021","46.98","Director of Housing, Neighbourhood and Building Services"
"Other Supplies","Misc Speciality Retail","Amznmktplace","Supplies and Services related expenditure","09/04/2021","22.23","Director of Portsmouth International Port"
"Business To Business Facility/","Industrial Supplies - Def","Arco Limited (Ahpp)","Supplies and Services related expenditure","09/04/2021","98.75","Director of Portsmouth International Port"
"Business Services","Business Services - Default","Voiceovers Ltd","Supplies and Services related expenditure","09/04/2021","330.00","Director of Corporate Services"
"Medical","Lab/Med/Hospital Equipment","Wightman & Parrish","Premises related expenditure","09/04/2021","122.64","Director of Adult Services"
"Other Supplies","Misc Speciality Retail","Better Mobility Ltd","Supplies and Services related expenditure","09/04/2021","241.20","Director of Adult Services"
"Other Supplies","Wholesale Clubs","Blueleaf Limited","Supplies and Services related expenditure","09/04/2021","1,763.00","Director of Adult Services"
"Business To Business Eqpt/Furn","Stationery/Office Supplies","Www.Banneruk.Com","Supplies and Services related expenditure","09/04/2021","1.10","Director of Culture, Leisure & Regulatory Services"
"Business To Business Eqpt/Furn","Stationery/Office Supplies","Www.Banneruk.Com","Supplies and Services related expenditure","09/04/2021","5.50","Director of Culture, Leisure & Regulatory Services"
"Government Service","Govt Serv - Default","Portsmouth City Co","Transport related expenditure","09/04/2021","10.00","Director of Children's Services and Education"
"Type of Retail Store","Grocery Stores/Supermarkets","Tesco Store 3048","Transport related expenditure","09/04/2021","133.33","Director of Adult Services"
"Other Supplies","Department Stores","Www.Johnlewis.Com","Supplies and Services related expenditure","09/04/2021","263.75","Director of Children's Services and Education"
"Type of Retail Store","Grocery Stores/Supermarkets","Lidl Gb Portsmouth","Supplies and Services related expenditure","09/04/2021","3.32","Director of Children's Services and Education"
"Type of Retail Store","Grocery Stores/Supermarkets","Aldi Stores Ltd","Supplies and Services related expenditure","09/04/2021","4.15","Director of Children's Services and Education"
"Eating And Drinking Places","Fast Food Restaurants","Costa Coffee 43043880","Supplies and Services related expenditure","09/04/2021","6.35","Director of Children's Services and Education"
"Type of Retail Store","Grocery Stores/Supermarkets","Asda Stores","Supplies and Services related expenditure","09/04/2021","16.67","Director of Children's Services and Education"
"Government Service","Govt Serv - Default","Pcc Internet Payment","Supplies and Services related expenditure","09/04/2021","11.00","Director of Children's Services and Education"
"Type of Retail Store","Grocery Stores/Supermarkets","Asda Stores Ltd","Supplies and Services related expenditure","09/04/2021","50.00","Director of Children's Services and Education"
"Government Service","Colleges/Univ/Jc/Profession","The Free Test Comp","Supplies and Services related expenditure","09/04/2021","149.17","Director of Housing, Neighbourhood and Building Services"
"Other Supplies","Misc Speciality Retail","Amznmktplace Amazon.Co.Uk","Supplies and Services related expenditure","09/04/2021","49.98","Director of Adult Services"
"Type of Retail Store","Drug Stores & Pharmacies","Savers Health & Beauty","Supplies and Services related expenditure","09/04/2021","6.60","Director of Housing, Neighbourhood and Building Services"
"Automobile Services & Supplies","Service Stations","Shell A3 T North","Supplies and Services related expenditure","09/04/2021","2.32","Director of Adult Services"
"Automobile Services & Supplies","Service Stations","Mandeville Service Statio","Supplies and Services related expenditure","09/04/2021","16.68","Director of Children's Services and Education"
"Other Supplies","Department Stores","Www.Johnlewis.Com","Supplies and Services related expenditure","09/04/2021","267.48","Director of Children's Services and Education"
"Transportation Conveyor","Passenger Railways","Trainline.Com","Supplies and Services related expenditure","09/04/2021","75.61","Director of Children's Services and Education"
"Type of Retail Store","Grocery Stores/Supermarkets","Tesco Stores 4611","Supplies and Services related expenditure","09/04/2021","4.10","Director of Children's Services and Education"
"Type of Retail Store","Grocery Stores/Supermarkets","Tesco Stores 4611","Supplies and Services related expenditure","09/04/2021","7.15","Director of Children's Services and Education"
"Type of Retail Store","Grocery Stores/Supermarkets","Tesco Store 3048","Supplies and Services related expenditure","09/04/2021","63.55","Director of Children's Services and Education"
"Equipment And Furniture","Furniture/Equip Stores","Homescapes Europa Ltd","Supplies and Services related expenditure","09/04/2021","212.85","Director of Children's Services and Education"
"Type of Retail Store","Grocery Stores/Supermarkets","Lidl Gb Portsmouth","Supplies and Services related expenditure","09/04/2021","4.16","Director of Adult Services"
"Facilities/Repair Services","Spec Contractors - Default","Christie Intruder Alar","Supplies and Services related expenditure","09/04/2021","3.33","Director of Housing, Neighbourhood and Building Services"
"Type of Retail Store","Grocery Stores/Supermarkets","Aldi Stores Ltd","Supplies and Services related expenditure","09/04/2021","5.97","Director of Housing, Neighbourhood and Building Services"
"Type of Retail Store","Grocery Stores/Supermarkets","Aldi Stores Ltd","Supplies and Services related expenditure","09/04/2021","7.29","Director of Housing, Neighbourhood and Building Services"
"Business Expenses/Services","Postage Stamps","Post Office Counter","Employees related expenditure","09/04/2021","68.99","Director of Housing, Neighbourhood and Building Services"
"Government Service","Govt Serv - Default","Portsmouth City Co","Transport related expenditure","09/04/2021","63.33","Director of Adult Services"
"Hotels And Motels","Lodging/Hotels/Motels/Resorts","Portsmouth Inns","Supplies and Services related expenditure","09/04/2021","200.00","Director of Housing, Neighbourhood and Building Services"
"Utility","Phone Serv/Equip Utility","O2","Supplies and Services related expenditure","09/04/2021","26.33","Director of Children's Services and Education"
"Facilities/Repair Supplies","Lumber/Build. Supply Stores","Selco Trading Ctr","Premises related expenditure","09/04/2021","112.90","Director of Adult Services"
"Facilities/Repair Supplies","Lumber/Build. Supply Stores","Travis Perkins Trading","Supplies and Services related expenditure","09/04/2021","68.60","Director of Housing, Neighbourhood and Building Services"
"Business To Business Eqpt/Furn","Stationery/Office Supplies","Www.Banneruk.Com","Supplies and Services related expenditure","09/04/2021","82.87","Director of Adult Services"
"Other Supplies","Misc Speciality Retail","Amznmktplace","Supplies and Services related expenditure","09/04/2021","46.66","Director of Children's Services and Education"
"Facilities/Repair Supplies","Home Supply Warehouse Stores","B&q Direct","Supplies and Services related expenditure","09/04/2021","104.97","Director of Children's Services and Education"
"Eating And Drinking Places","Fast Food Restaurants","McDonalds","Agency and Third Party Payments related expenditure","09/04/2021","7.91","Director of Children's Services and Education"
"Other Supplies","Misc Gen Merchandise - Def","B&m Retail Ltd","Supplies and Services related expenditure","09/04/2021","6.67","Director of Children's Services and Education"
"Eating And Drinking Places","Eating Places/Restaurants","Blue Cobra","Agency and Third Party Payments related expenditure","09/04/2021","53.25","Director of Children's Services and Education"
"Other Supplies","Catalog Merchant","Very","Agency and Third Party Payments related expenditure","09/04/2021","182.99","Director of Children's Services and Education"
"Other Supplies","Misc Speciality Retail","Timpson Ltd","Premises related expenditure","09/04/2021","14.05","Director of Children's Services and Education"
"Miscellaneous","Member Organizations - Def","Www.Cips.Org","Supplies and Services related expenditure","09/04/2021","22.95","Director of Finance & Resources"
"Other Supplies","Misc Speciality Retail","Amznmktplace","Premises related expenditure","10/04/2021","47.12","Director of Adult Services"
"Clothing Services","Mens/Womens Clothing Stores","Footasylum Plc","Agency and Third Party Payments related expenditure","10/04/2021","94.97","Director of Children's Services and Education"
"Type of Retail Store","Grocery Stores/Supermarkets","Asda Superstore","Supplies and Services related expenditure","10/04/2021","1.25","Director of Adult Services"
"Type of Retail Store","Grocery Stores/Supermarkets","Asda Superstore","Supplies and Services related expenditure","10/04/2021","4.29","Director of Adult Services"
"Facilities/Repair Supplies","Lumber/Build. Supply Stores","Screwfix Direct","Supplies and Services related expenditure","10/04/2021","224.98","Director of Portsmouth International Port"
"Other Supplies","Misc Speciality Retail","Amznmktplace Amazon.Co.Uk","Agency and Third Party Payments related expenditure","10/04/2021","-259.99","Director of Children's Services and Education"
"Facilities/Repair Supplies","Hardware Stores","Tradefix Direct","Supplies and Services related expenditure","10/04/2021","43.00","Director of Housing, Neighbourhood and Building Services"
"Other Supplies","Discount Stores","Argos Ltd","Supplies and Services related expenditure","10/04/2021","227.45","Director of Housing, Neighbourhood and Building Services"
"Eating And Drinking Places","Eating Places/Restaurants","Iz *batman Grill","Agency and Third Party Payments related expenditure","10/04/2021","7.40","Director of Children's Services and Education"
"Type of Retail Store","Grocery Stores/Supermarkets","Tesco Stores 4579","Supplies and Services related expenditure","10/04/2021","1.25","Director of Children's Services and Education"
"Type of Retail Store","Grocery Stores/Supermarkets","Tesco Stores 4579","Supplies and Services related expenditure","10/04/2021","12.25","Director of Children's Services and Education"
"Miscellaneous","Continuity/Subscription Mercht","Telegraph Subscription","Supplies and Services related expenditure","10/04/2021","1.00","Director of Portsmouth International Port"
"Auto/Vehicle Expenses","Auto Service Shops/Non Dealer","Kwik Fit","Transport related expenditure","10/04/2021","70.41","Director of Housing, Neighbourhood and Building Services"
"Type of Retail Store","Record Shops","Prime Video*m48jp3j14","Supplies and Services related expenditure","11/04/2021","3.33","Director of Children's Services and Education"
"Miscellaneous","Continuity/Subscription Mercht","Amazon Prime","Supplies and Services related expenditure","11/04/2021","6.66","Director of Children's Services and Education"
"Miscellaneous","Other Direct Marketers","Amazon.Co.Uk","Supplies and Services related expenditure","11/04/2021","20.63","Director of Children's Services and Education"
"Other Supplies","Misc Speciality Retail","Amznmktplace","Supplies and Services related expenditure","11/04/2021","67.48","Director of Children's Services and Education"
"Other Supplies","Misc Speciality Retail","Amznmktplace","Agency and Third Party Payments related expenditure","11/04/2021","81.87","Director of Children's Services and Education"
"Other Supplies","Misc Speciality Retail","Amznmktplace","Supplies and Services related expenditure","11/04/2021","20.82","Director of Adult Services"
"Other Supplies","Misc Speciality Retail","Amznmktplace","Supplies and Services related expenditure","11/04/2021","48.45","Director of Culture, Leisure & Regulatory Services"
"Other Supplies","Misc Speciality Retail","Amznmktplace","Supplies and Services related expenditure","11/04/2021","96.23","Director of Housing, Neighbourhood and Building Services"
"Transportation Conveyor","Parking Lots, Meters, Garages","Queen Alexandra Hopita","Transport related expenditure","11/04/2021","2.00","Director of Children's Services and Education"
"Miscellaneous","Other Direct Marketers","Amazon.Co.Uk","Premises related expenditure","11/04/2021","70.83","Director of Children's Services and Education"
"Other Supplies","Misc Speciality Retail","Amznmktplace","Supplies and Services related expenditure","11/04/2021","38.64","Director of Regeneration"
"Other Supplies","Misc Speciality Retail","Amznmktplace","Supplies and Services related expenditure","11/04/2021","22.45","Director of Housing, Neighbourhood and Building Services"
"Other Supplies","Misc Speciality Retail","Amznmktplace","Supplies and Services related expenditure","11/04/2021","2.49","Director of Housing, Neighbourhood and Building Services"
"Automobile Services & Supplies","Service Stations","Milton Road Servic","Supplies and Services related expenditure","11/04/2021","1.16","Director of Children's Services and Education"
"Type of Retail Store","Grocery Stores/Supermarkets","Tesco Stores 4579","Premises related expenditure","11/04/2021","8.33","Director of Children's Services and Education"
"Type of Retail Store","Grocery Stores/Supermarkets","Tesco Stores 4579","Supplies and Services related expenditure","11/04/2021","7.88","Director of Children's Services and Education"
"Type of Retail Store","Grocery Stores/Supermarkets","Tesco Stores 4579","Supplies and Services related expenditure","11/04/2021","1.67","Director of Children's Services and Education"
"Type of Retail Store","Grocery Stores/Supermarkets","Tesco Stores 4579","Supplies and Services related expenditure","11/04/2021","71.35","Director of Children's Services and Education"
"Business To Business Facility/","Industrial Supplies - Def","Arco Limited (Ahpp)","Supplies and Services related expenditure","07/04/2021","17.94","Director of Housing, Neighbourhood and Building Services"
"Business To Business Facility/","Industrial Supplies - Def","Arco Limited (Ahpp)","Supplies and Services related expenditure","07/04/2021","66.47","Director of Housing, Neighbourhood and Building Services"
"Business To Business Facility/","Industrial Supplies - Def","Arco Limited (Ahpp)","Supplies and Services related expenditure","09/04/2021","89.04","Director of Housing, Neighbourhood and Building Services"
"Other Supplies","Misc Speciality Retail","Amznmktplace Amazon.Co.Uk","Supplies and Services related expenditure","11/04/2021","87.58","Director of Culture, Leisure & Regulatory Services"
"Other Supplies","Misc Speciality Retail","Amazon.Co.Uk","Supplies and Services related expenditure","12/04/2021","38.46","Director of Children's Services and Education"
"Medical","Lab/Med/Hospital Equipment","Wightman & Parrish","Premises related expenditure","12/04/2021","50.72","Director of Housing, Neighbourhood and Building Services"
"Medical","Lab/Med/Hospital Equipment","Wightman & Parrish","Premises related expenditure","12/04/2021","633.50","Director of Housing, Neighbourhood and Building Services"
"Medical","Lab/Med/Hospital Equipment","Wightman & Parrish","Supplies and Services related expenditure","12/04/2021","574.68","Director of Corporate Services"
"Transportation Conveyor","Passenger Railways","Trainline","Transport related expenditure","12/04/2021","6.10","Director of Children's Services and Education"
"Miscellaneous","Continuity/Subscription Mercht","Amazon Prime Amzn.Co.Uk/P","Supplies and Services related expenditure","12/04/2021","-6.66","Director of Adult Services"
"Auto/Vehicle Expenses","Tire Retread/Repair Shops","Setyres","Transport related expenditure","12/04/2021","63.26","Director of Culture, Leisure & Regulatory Services"
"Miscellaneous","Veterinary Service","Farlington Vets Spv B0","Supplies and Services related expenditure","12/04/2021","69.02","Director of Culture, Leisure & Regulatory Services"
"Medical","Lab/Med/Hospital Equipment","Wightman & Parrish","Premises related expenditure","12/04/2021","126.72","Director of Housing, Neighbourhood and Building Services"
"Other Supplies","Misc Speciality Retail","Amznmktplace","Premises related expenditure","12/04/2021","25.82","Director of Children's Services and Education"
"Clothing Services","Family Clothing Stores","Andys Army Surplus","Supplies and Services related expenditure","12/04/2021","70.00","Director of Children's Services and Education"
"Other Supplies","Discount Stores","Argos Ltd","Supplies and Services related expenditure","12/04/2021","362.87","Director of Adult Services"
"Utility","Utilities/Elec/Gas/H2O/Sani","E.On Energy Solutions","Agency and Third Party Payments related expenditure","12/04/2021","104.91","Director of Housing, Neighbourhood and Building Services"
"Utility","Utilities/Elec/Gas/H2O/Sani","E.On Energy Solutions","Agency and Third Party Payments related expenditure","12/04/2021","118.66","Director of Housing, Neighbourhood and Building Services"
"Government Service","Govt Serv - Default","Www.Moneyclaim.Gov","Supplies and Services related expenditure","12/04/2021","105.00","Director of Housing, Neighbourhood and Building Services"
"Transportation Conveyor","Passenger Railways","Thetrainline.Com","Supplies and Services related expenditure","12/04/2021","72.16","Director of Children's Services and Education"
"Government Service","Govt Serv - Default","Pcc Internet Payment","Supplies and Services related expenditure","12/04/2021","11.00","Director of Children's Services and Education"
"Miscellaneous","Fines","Hmcourts-Service.G","Supplies and Services related expenditure","12/04/2021","101.00","Director of Children's Services and Education"
"Personal Service Provider","Computer Program/Sys Design","Squarespace Inc.","Supplies and Services related expenditure","12/04/2021","15.07","Director of Children's Services and Education"
"Facilities/Repair Supplies","Home Supply Warehouse Stores","B & Q 1260","Premises related expenditure","12/04/2021","6.67","Director of Housing, Neighbourhood and Building Services"
"Type of Retail Store","Grocery Stores/Supermarkets","Aldi Stores Ltd","Premises related expenditure","12/04/2021","26.67","Director of Housing, Neighbourhood and Building Services"
"Government Service","Govt Serv - Default","Pcc Internet Payment","Supplies and Services related expenditure","12/04/2021","11.00","Director of Children's Services and Education"
"Utility","Phone Serv/Equip Utility","Virgin Media Pymts","Supplies and Services related expenditure","12/04/2021","59.79","Director of Children's Services and Education"
"Government Service","Govt Serv - Default","Pcc Internet Payment","Supplies and Services related expenditure","12/04/2021","11.00","Director of Children's Services and Education"
"Government Service","Govt Serv - Default","Pcc Internet Payment","Supplies and Services related expenditure","12/04/2021","11.00","Director of Children's Services and Education"
"Type of Retail Store","Grocery Stores/Supermarkets","Asda Superstore","Supplies and Services related expenditure","12/04/2021","0.85","Director of Adult Services"
"Business To Business Facility/","Electrical Parts/Equipment","Edmundson Electrical","Premises related expenditure","12/04/2021","5.20","Director of Portsmouth International Port"
"Business To Business Facility/","Hardware Equipment/Supplies","Www.Lampshoponline.Co.Uk","Premises related expenditure","12/04/2021","78.17","Director of Portsmouth International Port"
"Business To Business Facility/","Electrical Parts/Equipment","Edmundson Electrical","Premises related expenditure","12/04/2021","271.62","Director of Portsmouth International Port"
"Business Services","Advertising Services","South Coast Publicity","Supplies and Services related expenditure","12/04/2021","300.00","Director of Regeneration"
"Type of Retail Store","Grocery Stores/Supermarkets","Tesco Stores 4579","Supplies and Services related expenditure","12/04/2021","3.15","Director of Adult Services"
"Business To Business Eqpt/Furn","Stationery/Office Supplies","Www.Banneruk.Com","Supplies and Services related expenditure","12/04/2021","16.86","Director of Housing, Neighbourhood and Building Services"
"Business To Business Services","Misc Publishing & Printing","Magazine.Co.Uk","Supplies and Services related expenditure","12/04/2021","45.99","Director of Children's Services and Education"
"Government Service","Govt Serv - Default","Portsmouth City Co","Transport related expenditure","12/04/2021","31.67","Director of Children's Services and Education"
"Government Service","Govt Serv - Default","Pcc Internet Payment","Supplies and Services related expenditure","12/04/2021","11.00","Director of Children's Services and Education"
"Type of Retail Store","Grocery Stores/Supermarkets","Eastern Stores Chinese S","Supplies and Services related expenditure","12/04/2021","5.60","Director of Children's Services and Education"
"Type of Retail Store","Grocery Stores/Supermarkets","Mediterranean Supermarket","Supplies and Services related expenditure","12/04/2021","6.79","Director of Children's Services and Education"
"Type of Retail Store","Grocery Stores/Supermarkets","Asda Stores","Supplies and Services related expenditure","12/04/2021","12.21","Director of Children's Services and Education"
"Type of Retail Store","Grocery Stores/Supermarkets","Asda Stores","Supplies and Services related expenditure","12/04/2021","87.07","Director of Children's Services and Education"
"Medical","Lab/Med/Hospital Equipment","Wightman & Parrish Ltd","Premises related expenditure","12/04/2021","104.61","Director of Housing, Neighbourhood and Building Services"
"Type of Retail Store","Grocery Stores/Supermarkets","Fruit Basket Ltd","Supplies and Services related expenditure","12/04/2021","99.18","Director of Adult Services"
"Type of Retail Store","Freezer/Meat Lockers","Solent Butchers","Supplies and Services related expenditure","12/04/2021","142.90","Director of Adult Services"
"Medical","Lab/Med/Hospital Equipment","Wightman & Parrish Ltd","Supplies and Services related expenditure","12/04/2021","254.96","Director of Adult Services"
"Government Service","Govt Serv - Default","Portsmouth City Co","Supplies and Services related expenditure","12/04/2021","63.33","Director of Adult Services"
"Type of Retail Store","Grocery Stores/Supermarkets","Marks&spencer Plc Sf","Supplies and Services related expenditure","12/04/2021","6.65","Director of Children's Services and Education"
"Business To Business Services","Misc Publishing & Printing","Buffer Publish Pro Mo","Supplies and Services related expenditure","12/04/2021","11.31","Chief Exec"
"Other Supplies","Misc Speciality Retail","Amznmktplace","Supplies and Services related expenditure","12/04/2021","63.31","Director of Finance & Resources"
"Miscellaneous","Other Direct Marketers","Amazon.Co.Uk","Supplies and Services related expenditure","12/04/2021","19.15","Director of Children's Services and Education"
"Business To Business Facility/","Industrial Supplies - Def","Arco Limited (Ahpp)","Supplies and Services related expenditure","12/04/2021","200.20","Director of Housing, Neighbourhood and Building Services"
"Personal Service Provider","Mgmt/Consult/Public Rel Ser","Get Licensed","Supplies and Services related expenditure","12/04/2021","377.97","Director of Housing, Neighbourhood and Building Services"
"Personal Service Provider","Architectural/Eng/Survey","Geocentrix Ltd","Supplies and Services related expenditure","12/04/2021","300.00","Director of Portsmouth International Port"
"Facilities/Repair Supplies","Home Supply Warehouse Stores","B & Q 1260","Premises related expenditure","12/04/2021","58.16","Director of Adult Services"
"Facilities/Repair Supplies","Home Supply Warehouse Stores","B & Q 1260","Premises related expenditure","12/04/2021","39.60","Director of Culture, Leisure & Regulatory Services"
"Business Services","Business Services - Default","Eb *supporting Childre","Supplies and Services related expenditure","12/04/2021","-45.00","Director of Children's Services and Education"
"Business Expenses/Services","Postage Stamps","Post Office Counter","Supplies and Services related expenditure","12/04/2021","1.87","Director of Regeneration"
"Facilities/Repair Supplies","Home Supply Warehouse Stores","B & Q 1260","Premises related expenditure","12/04/2021","84.28","Director of Children's Services and Education"
"Personal Service Provider","Detective/Protective Agen","Amberley Security","Supplies and Services related expenditure","12/04/2021","3.75","Director of Housing, Neighbourhood and Building Services"
"Facilities Maintenance","Specialty Cleaning/Polishing","Www.Cleaningspot.Co.Uk","Supplies and Services related expenditure","12/04/2021","31.95","Director of Housing, Neighbourhood and Building Services"
"Business To Business Facility/","Industrial Supplies - Def","Arco Limited (Sap)","Supplies and Services related expenditure","12/04/2021","39.78","Director of Housing, Neighbourhood and Building Services"
"Business To Business Eqpt/Furn","Stationery/Office Supplies","Www.Banneruk.Com","Premises related expenditure","12/04/2021","73.92","Director of Children's Services and Education"
"Other Supplies","Misc Speciality Retail","Amznbusiness","Supplies and Services related expenditure","12/04/2021","40.71","Director of Children's Services and Education"
"Transportation Conveyor","Parking Lots, Meters, Garages","Ncp Portsmouth Cascade","Supplies and Services related expenditure","12/04/2021","2.25","Director of Children's Services and Education"
"Automobile Services & Supplies","Service Stations","All Saints Service Statio","Premises related expenditure","12/04/2021","28.57","Director of Children's Services and Education"
"Automobile Services & Supplies","Service Stations","All Saints Service Statio","Premises related expenditure","12/04/2021","28.57","Director of Children's Services and Education"
"Business To Business Facility/","Industrial Supplies - Def","Arco Limited (Ahpp)","Supplies and Services related expenditure","07/04/2021","14.11","Director of Housing, Neighbourhood and Building Services"
"Business To Business Facility/","Industrial Supplies - Def","Arco Limited (Ahpp)","Supplies and Services related expenditure","09/04/2021","7.50","Director of Housing, Neighbourhood and Building Services"
"Hotels And Motels","Premier Travel Inns","Premier Inn 44537180","Agency and Third Party Payments related expenditure","12/04/2021","420.00","Director of Housing, Neighbourhood and Building Services"
"Hotels And Motels","Premier Travel Inns","Premier Inn44010625","Agency and Third Party Payments related expenditure","12/04/2021","433.33","Director of Housing, Neighbourhood and Building Services"
"Business To Business Services","Misc Publishing & Printing","Ingram Image Limit","Supplies and Services related expenditure","12/04/2021","15.00","Director of Corporate Services"
"Business To Business Services","Misc Publishing & Printing","Ingram Image Limit","Supplies and Services related expenditure","12/04/2021","15.00","Director of Corporate Services"
"Type of Retail Store","Electronics Sales","Batteries Plus Co Uk","Supplies and Services related expenditure","12/04/2021","26.85","Director of Adult Services"
"Clothing Services","Family Clothing Stores","Primark","Supplies and Services related expenditure","12/04/2021","40.67","Director of Children's Services and Education"
"Auto/Vehicle Expenses","Auto Service Shops/Non Dealer","Rel Boarhunt Ltd","Supplies and Services related expenditure","13/04/2021","125.00","Director of Finance & Resources"
"Other Supplies","Misc Speciality Retail","Amznmktplace","Supplies and Services related expenditure","13/04/2021","15.82","Director of Housing, Neighbourhood and Building Services"
"Other Supplies","Misc Speciality Retail","Amznmktplace","Supplies and Services related expenditure","13/04/2021","31.86","Director of Housing, Neighbourhood and Building Services"
"Government Service","Colleges/Univ/Jc/Profession","Paypal","Supplies and Services related expenditure","13/04/2021","52.50","Director of Housing, Neighbourhood and Building Services"
"Type of Retail Store","Artist/Craft Shops","Hobbycraft Trading Limite","Supplies and Services related expenditure","13/04/2021","22.50","Director of Children's Services and Education"
"Business To Business Eqpt/Furn","Stationery/Office Supplies","Www.Banneruk.Com","Supplies and Services related expenditure","13/04/2021","2.80","Director of Corporate Services"
"Business To Business Eqpt/Furn","Stationery/Office Supplies","Www.Banneruk.Com","Supplies and Services related expenditure","13/04/2021","11.39","Director of Corporate Services"
"Business To Business Facility/","Industrial Supplies - Def","Kite On Line Terminal","Supplies and Services related expenditure","13/04/2021","30.22","Director of Corporate Services"
"Other Supplies","Misc Speciality Retail","Amznmktplace","Supplies and Services related expenditure","13/04/2021","73.00","Director of Corporate Services"
"Personal Service Provider","Professional Services - Def","Thomson Reuters UK Ltd","Supplies and Services related expenditure","13/04/2021","144.00","Director of Corporate Services"
"Personal Service Provider","Professional Services - Def","Thomson Reuters UK Ltd","Supplies and Services related expenditure","13/04/2021","144.00","Director of Corporate Services"
"Business To Business Eqpt/Furn","Book Stores","Www.Ribabookshops.Com","Supplies and Services related expenditure","13/04/2021","72.00","Director of Housing, Neighbourhood and Building Services"
"Business Expenses/Services","Florist Supplies/Nursery Stock","Palmstead Nurseries Lt","Supplies and Services related expenditure","13/04/2021","18.72","Director of Housing, Neighbourhood and Building Services"
"Facilities/Repair Supplies","Lawn/Garden Supply/Nursery","M & S Enterprises","Supplies and Services related expenditure","13/04/2021","224.75","Director of Housing, Neighbourhood and Building Services"
"Type of Retail Store","Electronics Sales","Currys Pc World","Supplies and Services related expenditure","13/04/2021","315.82","Director of Housing, Neighbourhood and Building Services"
"Medical","Lab/Med/Hospital Equipment","Wightman & Parrish Ltd","Premises related expenditure","13/04/2021","373.44","Director of Housing, Neighbourhood and Building Services"
"Other Supplies","Misc Speciality Retail","Amznmktplace Amazon.Co.Uk","Supplies and Services related expenditure","13/04/2021","16.65","Director of Regeneration"
"Facilities Maintenance","Clean/Maint/Janitoral Serv","Hilsea Hand Car Wash","Transport related expenditure","13/04/2021","40.00","Director of Regeneration"
"Other Supplies","Misc Speciality Retail","Amznbusiness","Supplies and Services related expenditure","13/04/2021","108.33","Director of Regeneration"
"Business To Business Eqpt/Furn","Stationery/Office Supplies","Www.Banneruk.Com","Supplies and Services related expenditure","13/04/2021","58.67","Director of Housing, Neighbourhood and Building Services"
"Facilities/Repair Supplies","Lumber/Build. Supply Stores","Www.Credit.Trade.C","Capital related expenditure","13/04/2021","389.73","Director of Children's Services and Education"
"Facilities/Repair Supplies","Lawn/Garden Supply/Nursery","Www.","Supplies and Services related expenditure","13/04/2021","482.50","Director of Culture, Leisure & Regulatory Services"
"Other Supplies","Misc Speciality Retail","Amznmktplace","Supplies and Services related expenditure","13/04/2021","37.47","Director of Housing, Neighbourhood and Building Services"
"Facilities/Repair Supplies","Lawn/Garden Supply/Nursery","M & S Enterprises","Supplies and Services related expenditure","13/04/2021","78.85","Director of Housing, Neighbourhood and Building Services"
"Medical","Lab/Med/Hospital Equipment","Wightman & Parrish","Premises related expenditure","13/04/2021","84.27","Director of Housing, Neighbourhood and Building Services"
"Medical","Lab/Med/Hospital Equipment","Wightman & Parrish","Premises related expenditure","13/04/2021","105.36","Director of Housing, Neighbourhood and Building Services"
"Business To Business Eqpt/Furn","Computers/Peripherals/Software","Hotjar","Supplies and Services related expenditure","13/04/2021","26.01","Director of Corporate Services"
"Facilities/Repair Services","Gen Contractors Residentl/Coml","Crown Decorating Centr","Premises related expenditure","13/04/2021","160.86","Director of Children's Services and Education"
"Other Supplies","Misc Speciality Retail","Amznmktplace","Premises related expenditure","13/04/2021","14.16","Director of Children's Services and Education"
"Other Supplies","Misc Speciality Retail","Amz*holomall","Supplies and Services related expenditure","13/04/2021","-12.50","Director of Children's Services and Education"
"Business Services","Business Services - Default","Fast Key Services Limi","Supplies and Services related expenditure","13/04/2021","6.11","Director of Adult Services"
"Facilities/Repair Supplies","Misc Home Furnishing","Tillys Furniture Shop L","Capital related expenditure","13/04/2021","160.00","Capital - Housing RA"
"Facilities/Repair Supplies","Misc Home Furnishing","Tillys Beds Ltd","Capital related expenditure","13/04/2021","260.00","Capital - Housing RA"
"Type of Retail Store","Grocery Stores/Supermarkets","Tesco Gift Card","Supplies and Services related expenditure","13/04/2021","80.00","Director of Adult Services"
"Medical","Lab/Med/Hospital Equipment","Wightman & Parrish","Premises related expenditure","13/04/2021","120.71","Director of Housing, Neighbourhood and Building Services"
"Facilities/Repair Supplies","Lawn/Garden Supply/Nursery","Merry Mower Services Lt","Supplies and Services related expenditure","13/04/2021","20.42","Director of Housing, Neighbourhood and Building Services"
"Business To Business Facility/","Construction Materials - Def","Accurate Tool Repairs & S","Supplies and Services related expenditure","13/04/2021","36.00","Director of Housing, Neighbourhood and Building Services"
"Facilities/Repair Supplies","Lawn/Garden Supply/Nursery","Merry Mower Services Lt","Supplies and Services related expenditure","13/04/2021","107.40","Director of Housing, Neighbourhood and Building Services"
"Other Supplies","Misc Speciality Retail","Amznmktplace","Supplies and Services related expenditure","13/04/2021","304.99","Director of Children's Services and Education"
"Type of Retail Store","Grocery Stores/Supermarkets","Lidl Gb Portsmouth","Supplies and Services related expenditure","13/04/2021","12.47","Director of Adult Services"
"Type of Retail Store","Music Stores/Pianos","Www.Lmsmusicsupplies.C","Supplies and Services related expenditure","13/04/2021","322.00","Director of Children's Services and Education"
"Medical","Lab/Med/Hospital Equipment","Wightman & Parrish Ltd","Premises related expenditure","13/04/2021","165.86","Director of Housing, Neighbourhood and Building Services"
"Other Supplies","Department Stores","Www.Johnlewis.Com","Supplies and Services related expenditure","13/04/2021","572.95","Director of Adult Services"
"Other Supplies","Misc Speciality Retail","Amznmktplace","Supplies and Services related expenditure","13/04/2021","108.32","Director of Children's Services and Education"
"Type of Retail Store","Grocery Stores/Supermarkets","Marks&spencer Plc","Supplies and Services related expenditure","13/04/2021","43.99","Director of Adult Services"
"Facilities/Repair Supplies","Lumber/Build. Supply Stores","Screwfix Direct","Supplies and Services related expenditure","13/04/2021","29.87","Director of Portsmouth International Port"
"Business To Business Facility/","Electrical Parts/Equipment","Edmundson Electrical","Premises related expenditure","13/04/2021","105.31","Director of Portsmouth International Port"
"Business To Business Facility/","Hardware Equipment/Supplies","Cromwell Tools","Premises related expenditure","13/04/2021","290.79","Director of Portsmouth International Port"
"Business To Business Facility/","Hardware Equipment/Supplies","Ross Handling Ltd","Premises related expenditure","13/04/2021","664.00","Director of Portsmouth International Port"
"Other Supplies","Misc Speciality Retail","Amznmktplace","Supplies and Services related expenditure","13/04/2021","19.97","Director of Adult Services"
"Facilities/Repair Supplies","Lawn/Garden Supply/Nursery","Carters Of Swanwic","Supplies and Services related expenditure","13/04/2021","20.00","Director of Housing, Neighbourhood and Building Services"
"Type of Retail Store","Grocery Stores/Supermarkets","Tesco Store 3055","Supplies and Services related expenditure","13/04/2021","3.27","Director of Children's Services and Education"
"Business To Business Eqpt/Furn","Stationery/Office Supplies","Ace Safety Wear","Supplies and Services related expenditure","13/04/2021","366.46","Director of Portsmouth International Port"
"Government Service","Govt Serv - Default","Pcc Internet Payment","Supplies and Services related expenditure","13/04/2021","22.00","Director of Children's Services and Education"
"Type of Retail Store","Grocery Stores/Supermarkets","Tesco Store 3048","Supplies and Services related expenditure","13/04/2021","100.00","Director of Children's Services and Education"
"Equipment And Furniture","Household Appliance Stores","Welltex UK Ltd","Supplies and Services related expenditure","13/04/2021","320.00","Director of Children's Services and Education"
"Personal Service Provider","Mgmt/Consult/Public Rel Ser","Vanguard Consultin","Supplies and Services related expenditure","13/04/2021","75.00","Director of Housing, Neighbourhood and Building Services"
"Facilities/Repair Supplies","Hardware Stores","Home Bargains","Supplies and Services related expenditure","13/04/2021","2.30","Director of Adult Services"
"Medical","Med/Health Services - Def","Mangar International L","Supplies and Services related expenditure","13/04/2021","396.38","Director of Adult Services"
"Other Supplies","Department Stores","The Range","Supplies and Services related expenditure","13/04/2021","19.26","Director of Children's Services and Education"
"Auto/Vehicle Expenses","Automotive Tire Stores","Hordean Tyres","Supplies and Services related expenditure","13/04/2021","92.50","Director of Culture, Leisure & Regulatory Services"
"Other Supplies","Discount Stores","Argos Ltd","Supplies and Services related expenditure","13/04/2021","159.51","Director of Housing, Neighbourhood and Building Services"
"Business To Business Facility/","Industrial Supplies - Def","Arco Limited (Sap)","Supplies and Services related expenditure","13/04/2021","40.65","Director of Housing, Neighbourhood and Building Services"
"Utility","Phone Serv/Equip Utility","Zoom.Us 888-799-9666","Supplies and Services related expenditure","13/04/2021","11.99","Director of Public Health"
"Type of Retail Store","Grocery Stores/Supermarkets","Asda Superstore","Supplies and Services related expenditure","13/04/2021","3.82","Director of Adult Services"
"Medical","Lab/Med/Hospital Equipment","Wightman & Parrish","Premises related expenditure","13/04/2021","10.24","Director of Housing, Neighbourhood and Building Services"
"Facilities/Repair Supplies","Lawn/Garden Supply/Nursery","M & S Enterprises","Supplies and Services related expenditure","13/04/2021","79.13","Director of Housing, Neighbourhood and Building Services"
"Other Supplies","Misc Speciality Retail","Amznmktplace","Supplies and Services related expenditure","13/04/2021","47.29","Director of Finance & Resources"
"Type of Retail Store","Grocery Stores/Supermarkets","Sainsburys Waterlo","Supplies and Services related expenditure","13/04/2021","2.92","Director of Housing, Neighbourhood and Building Services"
"Type of Retail Store","Grocery Stores/Supermarkets","Tesco Stores 4579","Supplies and Services related expenditure","13/04/2021","0.83","Director of Children's Services and Education"
"Type of Retail Store","Grocery Stores/Supermarkets","Tesco Stores 4579","Supplies and Services related expenditure","13/04/2021","67.45","Director of Children's Services and Education"
"Other Supplies","Misc Speciality Retail","Amznmktplace","Supplies and Services related expenditure","13/04/2021","10.75","Director of Children's Services and Education"
"Business Services","Photofinish Labs/Dev","Cewe Limited","Supplies and Services related expenditure","13/04/2021","1.58","Director of Children's Services and Education"
"Other Supplies","Misc Gen Merchandise - Def","Wilko Retail Limited","Supplies and Services related expenditure","13/04/2021","6.00","Director of Children's Services and Education"
"Type of Retail Store","Sporting Goods Stores","Portsmouth Cascade Sports","Supplies and Services related expenditure","13/04/2021","9.05","Director of Children's Services and Education"
"Type of Retail Store","Sporting Goods Stores","Footasylum","Supplies and Services related expenditure","13/04/2021","80.97","Director of Children's Services and Education"
"Clothing Services","Mens/Womens Clothing Stores","River Island 144","Supplies and Services related expenditure","13/04/2021","89.25","Director of Children's Services and Education"
"Type of Retail Store","Grocery Stores/Supermarkets","Lidl Gb Portsmouth","Supplies and Services related expenditure","13/04/2021","7.26","Director of Children's Services and Education"
"Type of Retail Store","Grocery Stores/Supermarkets","Lidl Gb Portsmouth","Supplies and Services related expenditure","13/04/2021","0.17","Director of Children's Services and Education"
"Eating And Drinking Places","Fast Food Restaurants","Just Eat","Supplies and Services related expenditure","13/04/2021","7.53","Director of Children's Services and Education"
"Type of Retail Store","Grocery Stores/Supermarkets","Asda Stores","Supplies and Services related expenditure","13/04/2021","42.12","Director of Children's Services and Education"
"Other Supplies","Misc Speciality Retail","Amznmktplace","Supplies and Services related expenditure","13/04/2021","33.32","Director of Corporate Services"
"Business Services","Business Services - Default","Cisco Systems","Supplies and Services related expenditure","13/04/2021","68.53","Director of Corporate Services"
"Business Services","Business Services - Default","Cisco Systems","Supplies and Services related expenditure","13/04/2021","68.52","Director of Culture, Leisure & Regulatory Services"
"Other Supplies","Misc Speciality Retail","Amznmktplace","Supplies and Services related expenditure","13/04/2021","1,233.33","Director of Corporate Services"
"Business To Business Facility/","Industrial Supplies - Def","Arco Limited (Ahpp)","Supplies and Services related expenditure","08/04/2021","14.02","Director of Housing, Neighbourhood and Building Services"
"Business To Business Facility/","Industrial Supplies - Def","Arco Limited (Ahpp)","Supplies and Services related expenditure","09/04/2021","31.76","Director of Housing, Neighbourhood and Building Services"
"Business To Business Facility/","Industrial Supplies - Def","Arco Limited (Ahpp)","Supplies and Services related expenditure","09/04/2021","16.17","Director of Portsmouth International Port"
"Business To Business Facility/","Industrial Supplies - Def","Arco Limited (Ahpp)","Supplies and Services related expenditure","09/04/2021","38.70","Director of Portsmouth International Port"
"Business To Business Facility/","Industrial Supplies - Def","Arco Limited (Sap)","Premises related expenditure","09/04/2021","118.56","Director of Housing, Neighbourhood and Building Services"
"Personal Service Provider","Mgmt/Consult/Public Rel Ser","Tvlicensing.Co.Uk","Supplies and Services related expenditure","13/04/2021","159.00","Director of Housing, Neighbourhood and Building Services"
"Hotels And Motels","Premier Travel Inns","Premier Inn44537330","Agency and Third Party Payments related expenditure","13/04/2021","420.00","Director of Housing, Neighbourhood and Building Services"
"Type of Retail Store","Misc Food Stores - Default","Cool Milk At School-Moto","Supplies and Services related expenditure","13/04/2021","59.84","Director of Children's Services and Education"
"Business To Business Facility/","Industrial Supplies - Def","Arco Limited (Ahpp)","Supplies and Services related expenditure","13/04/2021","68.83","Director of Culture, Leisure & Regulatory Services"
"Equipment And Furniture","Furniture/Equip Stores","Ikea Ltd Shop Online","Supplies and Services related expenditure","13/04/2021","45.83","Director of Children's Services and Education"
"Other Supplies","Misc Speciality Retail","Amznmktplace Amazon.Co.Uk","Supplies and Services related expenditure","13/04/2021","203.21","Director of Children's Services and Education"
"Business Services","Business Services - Default","Www.Pmgltd.Co.Uk","Employees related expenditure","13/04/2021","295.00","Director of Regeneration"
"Miscellaneous","Veterinary Service","Medimarksci","Premises related expenditure","13/04/2021","179.32","Director of Housing, Neighbourhood and Building Services"
"Business To Business Facility/","Industrial Supplies - Def","Arco Limited (Ahpp)","Supplies and Services related expenditure","13/04/2021","12.46","Director of Housing, Neighbourhood and Building Services"
"Business To Business Eqpt/Furn","Stationery/Office Supplies","Www.Banneruk.Com","Supplies and Services related expenditure","14/04/2021","40.40","Director of Housing, Neighbourhood and Building Services"
"Other Supplies","Misc Speciality Retail","Amznmktplace","Supplies and Services related expenditure","14/04/2021","45.82","Director of Housing, Neighbourhood and Building Services"
"Facilities/Repair Supplies","Home Supply Warehouse Stores","B & Q 1260","Premises related expenditure","14/04/2021","5.00","Director of Adult Services"
"Other Supplies","Misc Speciality Retail","Amazon.Co.Uk","Supplies and Services related expenditure","14/04/2021","11.49","Director of Housing, Neighbourhood and Building Services"
"Miscellaneous","Other Direct Marketers","Amazon.Co.Uk","Supplies and Services related expenditure","14/04/2021","16.03","Director of Housing, Neighbourhood and Building Services"
"Business To Business Facility/","Industrial Supplies - Def","Arco Limited (Sap)","Supplies and Services related expenditure","14/04/2021","152.20","Director of Housing, Neighbourhood and Building Services"
"Business Services","Business Services - Default","Fast Key Services Limi","Supplies and Services related expenditure","14/04/2021","7.03","Director of Housing, Neighbourhood and Building Services"
"Facilities Maintenance","Clean/Maint/Janitoral Serv","Hilsea Hand Car Wash","Transport related expenditure","14/04/2021","20.00","Director of Regeneration"
"Transportation Conveyor","Parking Lots, Meters, Garages","3c_*gosport Bc","Supplies and Services related expenditure","14/04/2021","1.67","Director of Regeneration"
"Transportation Conveyor","Parking Lots, Meters, Garages","3c_*gosport Bc","Supplies and Services related expenditure","14/04/2021","2.50","Director of Regeneration"
"Facilities/Repair Supplies","Lumber/Build. Supply Stores","J F Goodwillie Ltd","Capital related expenditure","14/04/2021","44.75","Director of Children's Services and Education"
"Type of Retail Store","Grocery Stores/Supermarkets","Tesco Stores 4579","Supplies and Services related expenditure","14/04/2021","41.67","Director of Children's Services and Education"
"Business Expenses/Services","Florist Supplies/Nursery Stock","Fargro Limited","Premises related expenditure","14/04/2021","623.51","Director of Culture, Leisure & Regulatory Services"
"Business To Business Eqpt/Furn","Computer Software Stores","Mindomo","Supplies and Services related expenditure","14/04/2021","32.25","Director of Regeneration"
"Facilities/Repair Supplies","Lawn/Garden Supply/Nursery","Www.Tudorenvironmental","Supplies and Services related expenditure","14/04/2021","595.00","Director of Culture, Leisure & Regulatory Services"
"Other Supplies","Wholesale Clubs","Germinal Gb Limited","Supplies and Services related expenditure","14/04/2021","1,980.00","Director of Culture, Leisure & Regulatory Services"
"Facilities/Repair Supplies","Lawn/Garden Supply/Nursery","Carters Of Swanwic","Supplies and Services related expenditure","14/04/2021","27.50","Director of Housing, Neighbourhood and Building Services"
"Facilities/Repair Supplies","Lawn/Garden Supply/Nursery","Carters Of Swanwic","Supplies and Services related expenditure","14/04/2021","27.50","Director of Housing, Neighbourhood and Building Services"
"Medical","Lab/Med/Hospital Equipment","Wightman & Parrish","Premises related expenditure","14/04/2021","42.24","Director of Housing, Neighbourhood and Building Services"
"Facilities/Repair Supplies","Lawn/Garden Supply/Nursery","Carters Of Swanwic","Supplies and Services related expenditure","14/04/2021","81.00","Director of Housing, Neighbourhood and Building Services"
"Medical","Lab/Med/Hospital Equipment","Wightman & Parrish","Premises related expenditure","14/04/2021","117.93","Director of Housing, Neighbourhood and Building Services"
"Facilities/Repair Supplies","Lawn/Garden Supply/Nursery","Carters Of Swanwic","Supplies and Services related expenditure","14/04/2021","267.46","Director of Housing, Neighbourhood and Building Services"
"Medical","Lab/Med/Hospital Equipment","Wightman & Parrish","Premises related expenditure","14/04/2021","400.98","Director of Housing, Neighbourhood and Building Services"
"Business Expenses/Services","Stationery Stores","Www.Tts-Groups.Co.Uk","Supplies and Services related expenditure","14/04/2021","179.85","Director of Culture, Leisure & Regulatory Services"
"Automobile Services & Supplies","Service Stations","Tesco Pfs 4274","Premises related expenditure","14/04/2021","11.43","Director of Children's Services and Education"
"Type of Retail Store","Grocery Stores/Supermarkets","Tesco Stores 4579","Supplies and Services related expenditure","14/04/2021","26.20","Director of Children's Services and Education"
"Personal Service Provider","Mgmt/Consult/Public Rel Ser","Www.Txtlocal.Com","Supplies and Services related expenditure","14/04/2021","180.00","Director of Corporate Services"
"Government Service","Govt Serv - Default","Pcc Internet Payment","Supplies and Services related expenditure","14/04/2021","33.00","Director of Children's Services and Education"
"Government Service","Govt Serv - Default","Pcc Internet Payment","Supplies and Services related expenditure","14/04/2021","33.00","Director of Children's Services and Education"
"Type of Retail Store","Record Shops","Prime Video*m483c4p14","Supplies and Services related expenditure","14/04/2021","2.91","Director of Children's Services and Education"
"Business To Business Eqpt/Furn","Stationery/Office Supplies","Www.Banneruk.Com","Supplies and Services related expenditure","14/04/2021","3.42","Director of Adult Services"
"Business To Business Eqpt/Furn","Stationery/Office Supplies","Www.Banneruk.Com","Supplies and Services related expenditure","14/04/2021","29.01","Director of Adult Services"
"Other Supplies","Misc Speciality Retail","Patrolstore","Supplies and Services related expenditure","14/04/2021","78.32","Director of Regeneration"
"Facilities/Repair Supplies","Lawn/Garden Supply/Nursery","Carters Of Swanwic","Supplies and Services related expenditure","14/04/2021","67.50","Director of Housing, Neighbourhood and Building Services"
"Facilities/Repair Supplies","Lawn/Garden Supply/Nursery","Carters Of Swanwic","Supplies and Services related expenditure","14/04/2021","110.27","Director of Housing, Neighbourhood and Building Services"
"Facilities/Repair Supplies","Lawn/Garden Supply/Nursery","Carters Of Swanwic","Supplies and Services related expenditure","14/04/2021","138.49","Director of Housing, Neighbourhood and Building Services"
"Facilities/Repair Supplies","Lawn/Garden Supply/Nursery","Carters Of Swanwic","Supplies and Services related expenditure","14/04/2021","149.41","Director of Housing, Neighbourhood and Building Services"
"Facilities/Repair Supplies","Home Supply Warehouse Stores","B & Q 1260","Premises related expenditure","14/04/2021","45.44","Director of Children's Services and Education"
"Eating And Drinking Places","Fast Food Restaurants","McDonald S Restaurant","Supplies and Services related expenditure","14/04/2021","7.68","Director of Children's Services and Education"
"Miscellaneous","Other Direct Marketers","Amazon.Co.Uk","Supplies and Services related expenditure","14/04/2021","298.00","Director of Children's Services and Education"
"Transportation Conveyor","Passenger Railways","Swrailway Tck Off","Transport related expenditure","14/04/2021","18.40","Director of Children's Services and Education"
"Eating And Drinking Places","Eating Places/Restaurants","The Snakecatcher","Agency and Third Party Payments related expenditure","14/04/2021","14.90","Director of Children's Services and Education"
"Transportation Conveyor","Passenger Railways","Swrailway Tck Off","Transport related expenditure","14/04/2021","32.80","Director of Children's Services and Education"
"Type of Retail Store","Grocery Stores/Supermarkets","Wm Morrisons Store","Supplies and Services related expenditure","14/04/2021","2.50","Director of Children's Services and Education"
"Type of Retail Store","Grocery Stores/Supermarkets","Wm Morrisons Store","Supplies and Services related expenditure","14/04/2021","9.00","Director of Children's Services and Education"
"Type of Retail Store","Grocery Stores/Supermarkets","Wm Morrisons Store","Supplies and Services related expenditure","14/04/2021","79.78","Director of Children's Services and Education"
"Government Service","Govt Serv - Default","Gen Register Office","Supplies and Services related expenditure","14/04/2021","14.00","Director of Children's Services and Education"
"Utility","Phone Serv/Equip Utility","Id Mobile App","Agency and Third Party Payments related expenditure","14/04/2021","10.00","Director of Children's Services and Education"
"Other Supplies","Misc Speciality Retail","Amznmktplace","Agency and Third Party Payments related expenditure","14/04/2021","20.14","Director of Children's Services and Education"
"Eating And Drinking Places","Eating Places/Restaurants","Blue Cobra","Agency and Third Party Payments related expenditure","14/04/2021","40.50","Director of Children's Services and Education"
"Type of Retail Store","Grocery Stores/Supermarkets","Wm Morrisons Store","Supplies and Services related expenditure","14/04/2021","5.21","Director of Children's Services and Education"
"Type of Retail Store","Grocery Stores/Supermarkets","Wm Morrisons Store","Supplies and Services related expenditure","14/04/2021","48.37","Director of Children's Services and Education"
"Other Supplies","Misc Speciality Retail","Amznmktplace","Supplies and Services related expenditure","14/04/2021","26.12","Director of Corporate Services"
"Medical","Orthopedic Goods","Www.Alzproducts.Co.Uk","Supplies and Services related expenditure","14/04/2021","29.16","Director of Adult Services"
"Medical","Orthopedic Goods","Www.Alzproducts.Co.Uk","Supplies and Services related expenditure","14/04/2021","3.30","Director of Adult Services"
"Other Supplies","Misc Speciality Retail","Amznmktplace","Supplies and Services related expenditure","14/04/2021","59.01","Director of Children's Services and Education"
"Other Supplies","Misc Speciality Retail","Amznbusiness","Supplies and Services related expenditure","14/04/2021","114.28","Director of Housing, Neighbourhood and Building Services"
"Type of Retail Store","Grocery Stores/Supermarkets","Www.Iceland.Co.Uk","Supplies and Services related expenditure","14/04/2021","124.56","Director of Adult Services"
"Government Service","Govt Serv - Default","Pcc Internet Payment","Supplies and Services related expenditure","14/04/2021","11.00","Director of Children's Services and Education"
"Type of Retail Store","Grocery Stores/Supermarkets","Asda Stores","Supplies and Services related expenditure","14/04/2021","40.83","Director of Children's Services and Education"
"Type of Retail Store","Grocery Stores/Supermarkets","Asda Stores","Supplies and Services related expenditure","14/04/2021","1.06","Director of Children's Services and Education"
"Facilities/Repair Supplies","Hardware Stores","Paypal","Premises related expenditure","14/04/2021","128.32","Director of Housing, Neighbourhood and Building Services"
"Other Supplies","Misc Speciality Retail","Amznbusiness","Supplies and Services related expenditure","14/04/2021","248.33","Director of Children's Services and Education"
"Type of Retail Store","Grocery Stores/Supermarkets","Tesco Gift Card","Supplies and Services related expenditure","14/04/2021","40.00","Director of Children's Services and Education"
"Business To Business Eqpt/Furn","Stationery/Office Supplies","Www.Banneruk.Com","Supplies and Services related expenditure","14/04/2021","25.10","Director of Children's Services and Education"
"Medical","Lab/Med/Hospital Equipment","Wightman & Parrish","Premises related expenditure","14/04/2021","169.49","Director of Housing, Neighbourhood and Building Services"
"Other Supplies","Discount Stores","Argos Ltd","Supplies and Services related expenditure","14/04/2021","449.98","Director of Children's Services and Education"
"Business To Business Eqpt/Furn","Stationery/Office Supplies","Www.Banneruk.Com","Supplies and Services related expenditure","14/04/2021","22.32","Director of Housing, Neighbourhood and Building Services"
"Business To Business Eqpt/Furn","Stationery/Office Supplies","Www.Banneruk.Com","Supplies and Services related expenditure","14/04/2021","35.42","Director of Finance & Resources"
"Automobile Rental","Automobile Rental Agency","Southern Motor Contrac","Transport related expenditure","14/04/2021","4,621.45","Director of Regeneration"
"Type of Retail Store","Grocery Stores/Supermarkets","Asda Stores","Supplies and Services related expenditure","14/04/2021","3.64","Director of Adult Services"
"Government Service","Govt Serv - Default","Hampshire County Council","Supplies and Services related expenditure","14/04/2021","104.27","Director of Culture, Leisure & Regulatory Services"
"Other Supplies","Misc Speciality Retail","Amznmktplace","Premises related expenditure","14/04/2021","54.91","Director of Children's Services and Education"
"Other Supplies","Discount Stores","Argos Ltd","Supplies and Services related expenditure","14/04/2021","34.99","Director of Children's Services and Education"
"Business To Business Services","Information Retrieval Services","Www.Restore.Co.Uk","Supplies and Services related expenditure","14/04/2021","8.97","Solent LEP"
"Other Supplies","Misc Speciality Retail","Amznmktplace","Supplies and Services related expenditure","14/04/2021","14.16","Solent LEP"
"Personal Service Provider","Detective/Protective Agen","Www.My.Chubb.Co.Uk","Premises related expenditure","14/04/2021","70.00","Director of Children's Services and Education"
"Other Supplies","Misc Speciality Retail","Amz*absab Ltd","Supplies and Services related expenditure","14/04/2021","-14.90","Director of Housing, Neighbourhood and Building Services"
"Government Service","Business/Secretarial School","Highspeedtraining.Co.U","Supplies and Services related expenditure","14/04/2021","155.00","Director of Housing, Neighbourhood and Building Services"
"Automobile Services & Supplies","Service Stations","Green Road Svc Stn Ltd","Supplies and Services related expenditure","14/04/2021","6.31","Director of Children's Services and Education"
"Type of Retail Store","Artist/Craft Shops","Crafty Croc","Supplies and Services related expenditure","14/04/2021","49.19","Director of Children's Services and Education"
"Other Supplies","Misc Speciality Retail","Amznbusiness","Supplies and Services related expenditure","14/04/2021","14.16","Director of Adult Services"
"Government Service","Govt Serv - Default","Dvla Driver Online","Supplies and Services related expenditure","14/04/2021","34.00","Director of Children's Services and Education"
"Other Supplies","Misc Speciality Retail","Amznmktplace","Supplies and Services related expenditure","14/04/2021","37.46","Director of Adult Services"
"Other Supplies","Misc Speciality Retail","Amznbusiness","Supplies and Services related expenditure","14/04/2021","29.42","Director of Children's Services and Education"
"Other Supplies","Misc Speciality Retail","Amznmktplace","Premises related expenditure","14/04/2021","9.14","Director of Adult Services"
"Facilities/Repair Supplies","Home Supply Warehouse Stores","B & Q 1260","Premises related expenditure","14/04/2021","52.99","Director of Children's Services and Education"
"Business To Business Facility/","Industrial Supplies - Def","Arco Limited (Sap)","Supplies and Services related expenditure","14/04/2021","103.22","Director of Housing, Neighbourhood and Building Services"
"Business To Business Eqpt/Furn","Stationery/Office Supplies","Www.Banneruk.Com","Supplies and Services related expenditure","14/04/2021","-15.15","Director of Children's Services and Education"
"Government Service","Schools - Default","M L (UK) Limited","Supplies and Services related expenditure","14/04/2021","2.20","Director of Culture, Leisure & Regulatory Services"
"Facilities/Repair Supplies","Lumber/Build. Supply Stores","Toolstation Ltd","Supplies and Services related expenditure","14/04/2021","15.20","Director of Culture, Leisure & Regulatory Services"
"Facilities/Repair Supplies","Home Supply Warehouse Stores","B & Q 1260","Supplies and Services related expenditure","14/04/2021","70.69","Director of Adult Services"
"Government Service","Tax Payments","Dvla Vehicle Tax","Transport related expenditure","14/04/2021","277.50","Director of Housing, Neighbourhood and Building Services"
"Government Service","Tax Payments","Dvla Vehicle Tax","Transport related expenditure","14/04/2021","277.50","Director of Housing, Neighbourhood and Building Services"
"Government Service","Tax Payments","Dvla Vehicle Tax","Transport related expenditure","14/04/2021","317.50","Director of Housing, Neighbourhood and Building Services"
"Business To Business Eqpt/Furn","Computer Software Stores","Sp * Clove Technology","Supplies and Services related expenditure","14/04/2021","27.48","Director of Corporate Services"
"Business To Business Other Sup","Uniforms & Commercial Clothing","Alexandra Website","Supplies and Services related expenditure","14/04/2021","20.98","Director of Adult Services"
"Business To Business Facility/","Industrial Supplies - Def","Arco Limited (Ahpp)","Supplies and Services related expenditure","12/04/2021","30.28","Director of Housing, Neighbourhood and Building Services"
"Business To Business Facility/","Industrial Supplies - Def","Arco Limited (Sap)","Supplies and Services related expenditure","12/04/2021","12.00","Director of Housing, Neighbourhood and Building Services"
"Personal Service Provider","Commercial Photo/Art/Graph","Signs Express Portsmo","Capital related expenditure","13/04/2021","257.25","Capital - Health, Wellbeing & Social Care"
"Business To Business Facility/","Electrical Parts/Equipment","Rs Components","Supplies and Services related expenditure","14/04/2021","75.70","Director of Housing, Neighbourhood and Building Services"
"Business To Business Eqpt/Furn","Stationery/Office Supplies","Staples","Premises related expenditure","14/04/2021","43.98","Director of Culture, Leisure & Regulatory Services"
"Business To Business Facility/","Industrial Supplies - Def","Arco Limited (Ahpp)","Supplies and Services related expenditure","14/04/2021","46.43","Director of Housing, Neighbourhood and Building Services"
"Business To Business Facility/","Industrial Supplies - Def","Arco Limited (Ahpp)","Supplies and Services related expenditure","14/04/2021","17.28","Director of Regeneration"
"Business To Business Facility/","Industrial Supplies - Def","Arco Limited (Ahpp)","Supplies and Services related expenditure","14/04/2021","21.30","Director of Regeneration"
"Type of Retail Store","Grocery Stores/Supermarkets","Premier Stores","Supplies and Services related expenditure","14/04/2021","41.18","Director of Children's Services and Education"
"Utility","Cable/Pay Tv Services","Sky Subscription","Supplies and Services related expenditure","14/04/2021","79.00","Director of Children's Services and Education"
"Business To Business Facility/","Electrical Parts/Equipment","Rs Components","Supplies and Services related expenditure","14/04/2021","57.60","Director of Culture, Leisure & Regulatory Services"
"Business To Business Eqpt/Furn","Commercial Furniture","Sp * Osmond Ergonomics","Supplies and Services related expenditure","14/04/2021","279.95","Director of Adult Services"
"Medical","Lab/Med/Hospital Equipment","Complete Care Shop","Supplies and Services related expenditure","15/04/2021","518.78","Director of Corporate Services"
"Medical","Lab/Med/Hospital Equipment","King Scientific","Supplies and Services related expenditure","15/04/2021","544.00","Director of Corporate Services"
"Facilities Maintenance","Clean/Maint/Janitoral Serv","Hilsea Hand Car Wash","Transport related expenditure","15/04/2021","20.00","Director of Regeneration"
"Other Supplies","Misc Speciality Retail","Amznmktplace","Supplies and Services related expenditure","15/04/2021","19.44","Director of Regeneration"
"Type of Retail Store","Grocery Stores/Supermarkets","Aldi Stores Ltd","Supplies and Services related expenditure","15/04/2021","4.15","Director of Housing, Neighbourhood and Building Services"
"Other Supplies","Misc Speciality Retail","Rigby Taylor Limited","Supplies and Services related expenditure","15/04/2021","920.00","Director of Culture, Leisure & Regulatory Services"
"Business Expenses/Services","Stationery Stores","Www.Tts-Groups.Co.Uk","Supplies and Services related expenditure","15/04/2021","149.85","Director of Culture, Leisure & Regulatory Services"
"Business Expenses/Services","Stationery Stores","Www.Tts-Groups.Co.Uk","Supplies and Services related expenditure","15/04/2021","410.70","Director of Culture, Leisure & Regulatory Services"
"Type of Retail Store","Grocery Stores/Supermarkets","Asda Stores","Supplies and Services related expenditure","15/04/2021","280.00","Director of Children's Services and Education"
"Business To Business Eqpt/Furn","Computers/Peripherals/Software","Wp-Hands Free Comp","Supplies and Services related expenditure","15/04/2021","340.00","Director of Children's Services and Education"
"Facilities/Repair Supplies","Home Supply Warehouse Stores","B & Q 1260","Premises related expenditure","15/04/2021","23.03","Director of Children's Services and Education"
"Type of Retail Store","Grocery Stores/Supermarkets","Asda Stores","Supplies and Services related expenditure","15/04/2021","14.17","Director of Adult Services"
"Type of Retail Store","Grocery Stores/Supermarkets","Tesco Store 3055","Supplies and Services related expenditure","15/04/2021","18.33","Director of Adult Services"
"Caterers Food","Caterers","Angel Springs Ltd","Supplies and Services related expenditure","15/04/2021","83.70","Director of Portsmouth International Port"
"Caterers Food","Caterers","Angel Springs Ltd","Supplies and Services related expenditure","15/04/2021","56.88","Director of Portsmouth International Port"
"Caterers Food","Caterers","Angel Springs Ltd","Supplies and Services related expenditure","15/04/2021","186.87","Director of Portsmouth International Port"
"Business Services","Advertising Services","Facebk 4q97s3f8z2","Supplies and Services related expenditure","15/04/2021","583.33","Director of Corporate Services"
"Facilities/Repair Supplies","Home Supply Warehouse Stores","B & Q 1260","Premises related expenditure","15/04/2021","27.99","Director of Children's Services and Education"
"Type of Retail Store","Grocery Stores/Supermarkets","Premier Stores","Supplies and Services related expenditure","15/04/2021","8.97","Director of Children's Services and Education"
"Eating And Drinking Places","Eating Places/Restaurants","Enzee Ristorante","Agency and Third Party Payments related expenditure","15/04/2021","22.42","Director of Children's Services and Education"
"Eating And Drinking Places","Eating Places/Restaurants","The Snakecatcher","Agency and Third Party Payments related expenditure","15/04/2021","35.00","Director of Children's Services and Education"
"Eating And Drinking Places","Eating Places/Restaurants","The Snakecatcher","Agency and Third Party Payments related expenditure","15/04/2021","74.17","Director of Children's Services and Education"
"Other Supplies","Misc Speciality Retail","Amznmktplace","Supplies and Services related expenditure","15/04/2021","27.49","Director of Children's Services and Education"
"Business Services","Advertising Services","Facebk 9r9hn37zt2","Supplies and Services related expenditure","15/04/2021","24.31","Director of Culture, Leisure & Regulatory Services"
"Business Services","Advertising Services","Facebk 9r9hn37zt2","Supplies and Services related expenditure","15/04/2021","98.65","Director of Culture, Leisure & Regulatory Services"
"Facilities/Repair Supplies","Lawn/Garden Supply/Nursery","Hillier Nurseries Limited","Premises related expenditure","15/04/2021","320.00","Director of Housing, Neighbourhood and Building Services"
"Other Supplies","Misc Gen Merchandise - Def","Wilko Retail Limited","Supplies and Services related expenditure","15/04/2021","49.00","Director of Public Health"
"Type of Retail Store","Grocery Stores/Supermarkets","Asda Groceries Online","Supplies and Services related expenditure","15/04/2021","-5.40","Director of Adult Services"
"Type of Retail Store","Grocery Stores/Supermarkets","Asda Groceries Online","Supplies and Services related expenditure","15/04/2021","120.12","Director of Adult Services"
"Business To Business Facility/","Electrical Parts/Equipment","Edmundson Electrical","Premises related expenditure","15/04/2021","70.21","Director of Portsmouth International Port"
"Business To Business Facility/","Electrical Parts/Equipment","Edmundson Electrical","Premises related expenditure","15/04/2021","417.53","Director of Portsmouth International Port"
"Business To Business Facility/","Electrical Parts/Equipment","Edmundson Electrical","Premises related expenditure","15/04/2021","431.15","Director of Portsmouth International Port"
"Business To Business Eqpt/Furn","Stationery/Office Supplies","Www.Banneruk.Com","Supplies and Services related expenditure","15/04/2021","72.37","Director of Regeneration"
"Facilities/Repair Services","Small Appliance Repair Def","Hooper Services Ltd","Premises related expenditure","15/04/2021","25.60","Director of Housing, Neighbourhood and Building Services"
"Business To Business Facility/","Industrial Supplies - Def","Arco Limited (Sap)","Supplies and Services related expenditure","15/04/2021","31.26","Director of Culture, Leisure & Regulatory Services"
"Type of Retail Store","Grocery Stores/Supermarkets","Fruit Basket Ltd","Supplies and Services related expenditure","15/04/2021","51.87","Director of Culture, Leisure & Regulatory Services"
"Type of Retail Store","Grocery Stores/Supermarkets","Tesco Gift Card","Supplies and Services related expenditure","15/04/2021","50.00","Director of Children's Services and Education"
"Other Supplies","Discount Stores","Argos Ltd","Supplies and Services related expenditure","15/04/2021","20.00","Director of Adult Services"
"Miscellaneous","Continuity/Subscription Mercht","Amazon Prime","Supplies and Services related expenditure","15/04/2021","6.66","Director of Regeneration"
"Government Service","Tax Payments","Dvla Vehicle Tax","Supplies and Services related expenditure","15/04/2021","115.62","Director of Housing, Neighbourhood and Building Services"
"Government Service","Tax Payments","Dvla Vehicle Tax","Supplies and Services related expenditure","15/04/2021","115.62","Director of Housing, Neighbourhood and Building Services"
"Type of Retail Store","Grocery Stores/Supermarkets","Tesco Stores 4579","Supplies and Services related expenditure","15/04/2021","4.85","Director of Adult Services"
"Business To Business Eqpt/Furn","Stationery/Office Supplies","Www.Banneruk.Com","Supplies and Services related expenditure","15/04/2021","8.11","Director of Housing, Neighbourhood and Building Services"
"Business To Business Eqpt/Furn","Stationery/Office Supplies","Www.Banneruk.Com","Supplies and Services related expenditure","15/04/2021","312.38","Director of Housing, Neighbourhood and Building Services"
"Business To Business Eqpt/Furn","Stationery/Office Supplies","Www.Banneruk.Com","Supplies and Services related expenditure","15/04/2021","13.82","Director of Culture, Leisure & Regulatory Services"
"Business To Business Eqpt/Furn","Stationery/Office Supplies","Www.Banneruk.Com","Supplies and Services related expenditure","15/04/2021","114.01","Director of Culture, Leisure & Regulatory Services"
"Business To Business Eqpt/Furn","Stationery/Office Supplies","Www.Banneruk.Com","Supplies and Services related expenditure","15/04/2021","18.73","Director of Children's Services and Education"
"Type of Retail Store","Grocery Stores/Supermarkets","Asda Stores Ltd","Supplies and Services related expenditure","15/04/2021","30.00","Director of Children's Services and Education"
"Business To Business Eqpt/Furn","Stationery/Office Supplies","Www.Banneruk.Com","Supplies and Services related expenditure","15/04/2021","39.52","Director of Children's Services and Education"
"Business To Business Facility/","Electrical Parts/Equipment","Barden UK Ltd","Transport related expenditure","15/04/2021","44.39","Director of Housing, Neighbourhood and Building Services"
"Business To Business Eqpt/Furn","Stationery/Office Supplies","Www.Banneruk.Com","Supplies and Services related expenditure","15/04/2021","40.74","Director of Children's Services and Education"
"Other Supplies","Misc Speciality Retail","Amznmktplace Amazon.Co.Uk","Supplies and Services related expenditure","15/04/2021","25.98","Director of Children's Services and Education"
"Other Supplies","Misc Speciality Retail","Amznmktplace","Supplies and Services related expenditure","15/04/2021","46.60","Director of Children's Services and Education"
"Facilities/Repair Supplies","Home Supply Warehouse Stores","B & Q 1260","Premises related expenditure","15/04/2021","85.23","Director of Culture, Leisure & Regulatory Services"
"Transportation Conveyor","Parking Lots, Meters, Garages","Bhcc-Paybyphoneparking","Supplies and Services related expenditure","15/04/2021","4.10","Director of Children's Services and Education"
"Government Service","Govt Serv - Default","Enviroment Agency","Premises related expenditure","15/04/2021","726.00","Director of Portsmouth International Port"
"Type of Retail Store","Grocery Stores/Supermarkets","Tesco Stores 4579","Premises related expenditure","15/04/2021","24.17","Director of Children's Services and Education"
"Type of Retail Store","Grocery Stores/Supermarkets","Tesco Stores 4579","Premises related expenditure","15/04/2021","7.13","Director of Children's Services and Education"
"Type of Retail Store","Grocery Stores/Supermarkets","Tesco Stores 4579","Supplies and Services related expenditure","15/04/2021","2.08","Director of Children's Services and Education"
"Type of Retail Store","Grocery Stores/Supermarkets","Tesco Stores 4579","Supplies and Services related expenditure","15/04/2021","6.58","Director of Children's Services and Education"
"Type of Retail Store","Grocery Stores/Supermarkets","Tesco Stores 4579","Supplies and Services related expenditure","15/04/2021","5.83","Director of Children's Services and Education"
"Type of Retail Store","Grocery Stores/Supermarkets","Tesco Stores 4579","Supplies and Services related expenditure","15/04/2021","71.63","Director of Children's Services and Education"
"Eating And Drinking Places","Fast Food Restaurants","Costa Coffee","Supplies and Services related expenditure","15/04/2021","10.29","Director of Children's Services and Education"
"Other Supplies","Catalog Merchant","Www.Insectlore-Europe.Co","Supplies and Services related expenditure","15/04/2021","37.46","Director of Children's Services and Education"
"Business To Business Eqpt/Furn","Stationery/Office Supplies","Viking Uk","Supplies and Services related expenditure","15/04/2021","55.80","Director of Children's Services and Education"
"Business To Business Eqpt/Furn","Stationery/Office Supplies","Viking Uk","Premises related expenditure","15/04/2021","55.47","Director of Children's Services and Education"
"Medical","Lab/Med/Hospital Equipment","Wightman & Parrish","Premises related expenditure","15/04/2021","62.48","Director of Adult Services"
"Type of Retail Store","Grocery Stores/Supermarkets","Fruit Basket Ltd","Supplies and Services related expenditure","15/04/2021","187.00","Director of Adult Services"
"Type of Retail Store","Misc Food Stores - Default","Bransbury Park Butchers","Supplies and Services related expenditure","15/04/2021","268.00","Director of Adult Services"
"Type of Retail Store","Freezer/Meat Lockers","Dennis Edwards Food Serv","Supplies and Services related expenditure","15/04/2021","596.18","Director of Adult Services"
"Type of Retail Store","Freezer/Meat Lockers","Dennis Edwards Food Serv","Supplies and Services related expenditure","15/04/2021","3.88","Director of Adult Services"
"Business To Business Facility/","Industrial Supplies - Def","Arco Limited (Sap)","Supplies and Services related expenditure","13/04/2021","41.29","Director of Housing, Neighbourhood and Building Services"
"Equipment And Furniture","Furniture/Equip Stores","Sterling Beds Ltd","Supplies and Services related expenditure","14/04/2021","297.50","Director of Children's Services and Education"
"Utility","Phone Serv/Equip Utility","Smarty Co Uk","Supplies and Services related expenditure","15/04/2021","12.00","Director of Children's Services and Education"
"Medical","Lab/Med/Hospital Equipment","Wightman & Parrish","Premises related expenditure","16/04/2021","13.75","Director of Housing, Neighbourhood and Building Services"
"Medical","Lab/Med/Hospital Equipment","Wightman & Parrish","Premises related expenditure","16/04/2021","22.40","Director of Housing, Neighbourhood and Building Services"
"Medical","Lab/Med/Hospital Equipment","Wightman & Parrish","Supplies and Services related expenditure","16/04/2021","209.25","Director of Housing, Neighbourhood and Building Services"
"Medical","Lab/Med/Hospital Equipment","Wightman & Parrish","Premises related expenditure","16/04/2021","367.50","Director of Housing, Neighbourhood and Building Services"
"Type of Retail Store","Electronics Sales","Currys Online","Supplies and Services related expenditure","16/04/2021","315.82","Director of Housing, Neighbourhood and Building Services"
"Other Supplies","Misc Gen Merchandise - Def","Wilko.Com","Premises related expenditure","16/04/2021","56.67","Director of Adult Services"
"Business Services","Business Services - Default","Www.Panelwarehouse.Com","Supplies and Services related expenditure","16/04/2021","219.00","Director of Portsmouth International Port"
"Other Supplies","Discount Stores","Argos Ltd","Supplies and Services related expenditure","16/04/2021","24.12","Director of Children's Services and Education"
"Transportation Conveyor","Parking Lots, Meters, Garages","3c_*gosport Bc","Supplies and Services related expenditure","16/04/2021","1.67","Director of Regeneration"
"Transportation Conveyor","Parking Lots, Meters, Garages","3c_*gosport Bc","Supplies and Services related expenditure","16/04/2021","1.67","Director of Regeneration"
"Auto/Vehicle Expenses","Automotive Tire Stores","Hordean Tyres","Transport related expenditure","16/04/2021","124.95","Director of Culture, Leisure & Regulatory Services"
"Medical","Lab/Med/Hospital Equipment","Wightman & Parrish","Premises related expenditure","16/04/2021","35.40","Director of Housing, Neighbourhood and Building Services"
"Medical","Lab/Med/Hospital Equipment","Wightman & Parrish Ltd","Premises related expenditure","16/04/2021","52.97","Director of Housing, Neighbourhood and Building Services"
"Medical","Lab/Med/Hospital Equipment","Wightman & Parrish","Premises related expenditure","16/04/2021","177.90","Director of Housing, Neighbourhood and Building Services"
"Facilities/Repair Supplies","Lumber/Build. Supply Stores","Cps","Premises related expenditure","16/04/2021","13.44","Director of Children's Services and Education"
"Type of Retail Store","Grocery Stores/Supermarkets","Iceland","Supplies and Services related expenditure","16/04/2021","10.00","Director of Adult Services"
"Business To Business Facility/","Hardware Equipment/Supplies","Ultra Secure Ltd","Supplies and Services related expenditure","16/04/2021","237.54","Chief Exec"
"Facilities/Repair Supplies","Lumber/Build. Supply Stores","Wurth UK Limited","Supplies and Services related expenditure","16/04/2021","20.17","Director of Culture, Leisure & Regulatory Services"
"Personal Service Provider","Detective/Protective Agen","Amberley Security","Premises related expenditure","16/04/2021","49.58","Director of Culture, Leisure & Regulatory Services"
"Facilities/Repair Supplies","Lawn/Garden Supply/Nursery","Merry Mower Services Lt","Supplies and Services related expenditure","16/04/2021","186.02","Director of Housing, Neighbourhood and Building Services"
"Business Expenses/Services","Stationery Stores","Www.Ukpos.Com","Supplies and Services related expenditure","16/04/2021","99.34","Director of Culture, Leisure & Regulatory Services"
"Facilities/Repair Supplies","Home Supply Warehouse Stores","B & Q 1048","Premises related expenditure","16/04/2021","6.85","Director of Children's Services and Education"
"Facilities/Repair Supplies","Lumber/Build. Supply Stores","Buildbase - Portsmouth","Premises related expenditure","16/04/2021","29.83","Director of Housing, Neighbourhood and Building Services"
"Personal Service Provider","Accountants/Auditors/Bookpr","Bananaprint","Supplies and Services related expenditure","16/04/2021","29.92","Director of Culture, Leisure & Regulatory Services"
"Facilities/Repair Supplies","Lawn/Garden Supply/Nursery","Carters Of Swanwic","Premises related expenditure","16/04/2021","97.58","Director of Housing, Neighbourhood and Building Services"
"Government Service","Govt Serv - Default","Pcc Internet Payment","Supplies and Services related expenditure","16/04/2021","22.00","Director of Children's Services and Education"
"Amusement/Entertainment","Bands/Orchestras/Entertain","Mountbatten Centre","Supplies and Services related expenditure","16/04/2021","3.15","Director of Adult Services"
"Amusement/Entertainment","Bands/Orchestras/Entertain","Mountbatten Centre","Supplies and Services related expenditure","16/04/2021","3.15","Director of Adult Services"
"Amusement/Entertainment","Bands/Orchestras/Entertain","Mountbatten Centre","Supplies and Services related expenditure","16/04/2021","3.15","Director of Adult Services"
"Clothing Services","Family Clothing Stores","Site King","Supplies and Services related expenditure","16/04/2021","49.97","Director of Regeneration"
"Other Supplies","Catalog Merchant","Www.Nisbets.Com","Supplies and Services related expenditure","16/04/2021","61.98","Director of Adult Services"
"Hotels And Motels","Lodging/Hotels/Motels/Resorts","Hotel On Booking.Com","Supplies and Services related expenditure","16/04/2021","46.67","Director of Children's Services and Education"
"Government Service","Govt Serv - Default","Pcc Internet Payment","Agency and Third Party Payments related expenditure","16/04/2021","11.00","Director of Culture, Leisure & Regulatory Services"
"Type of Retail Store","Grocery Stores/Supermarkets","Tesco Stores 6002","Supplies and Services related expenditure","16/04/2021","15.82","Director of Children's Services and Education"
"Type of Retail Store","Grocery Stores/Supermarkets","Tesco Stores 6002","Supplies and Services related expenditure","16/04/2021","134.01","Director of Children's Services and Education"
"Eating And Drinking Places","Fast Food Restaurants","McDonalds","Supplies and Services related expenditure","16/04/2021","6.27","Director of Children's Services and Education"
"Other Supplies","Variety Stores","Tk Maxx","Premises related expenditure","16/04/2021","9.98","Director of Children's Services and Education"
"Other Supplies","Department Stores","The Range","Supplies and Services related expenditure","16/04/2021","2.49","Director of Children's Services and Education"
"Other Supplies","Department Stores","The Range","Supplies and Services related expenditure","16/04/2021","8.32","Director of Children's Services and Education"
"Other Supplies","Department Stores","The Range","Supplies and Services related expenditure","16/04/2021","7.49","Director of Children's Services and Education"
"Other Supplies","Department Stores","The Range","Supplies and Services related expenditure","16/04/2021","6.65","Director of Children's Services and Education"
"Type of Retail Store","Grocery Stores/Supermarkets","Wm Morrisons Store","Supplies and Services related expenditure","16/04/2021","2.50","Director of Children's Services and Education"
"Type of Retail Store","Grocery Stores/Supermarkets","Wm Morrisons Store","Supplies and Services related expenditure","16/04/2021","42.08","Director of Children's Services and Education"
"Facilities/Repair Supplies","Lawn/Garden Supply/Nursery","Www.Tudorenvironmental","Supplies and Services related expenditure","16/04/2021","156.50","Director of Culture, Leisure & Regulatory Services"
"Facilities/Repair Supplies","Lawn/Garden Supply/Nursery","Www.Tudorenvironmental","Supplies and Services related expenditure","16/04/2021","519.55","Director of Culture, Leisure & Regulatory Services"
"Transportation Conveyor","Parking Lots, Meters, Garages","Portsmouth City Co","Transport related expenditure","16/04/2021","2.42","Director of Children's Services and Education"
"Medical","Dentists/Orthodontisis","Hampshire Terrace Dental","Supplies and Services related expenditure","16/04/2021","23.80","Director of Children's Services and Education"
"Facilities/Repair Supplies","Home Supply Warehouse Stores","B & Q 1260","Supplies and Services related expenditure","16/04/2021","59.85","Director of Housing, Neighbourhood and Building Services"
"Transportation Conveyor","Passenger Railways","Swrailway Tck Off","Transport related expenditure","16/04/2021","6.60","Director of Children's Services and Education"
"Type of Retail Store","Grocery Stores/Supermarkets","Asda Stores Ltd","Supplies and Services related expenditure","16/04/2021","20.00","Director of Children's Services and Education"
"Type of Retail Store","Grocery Stores/Supermarkets","Asda Stores Ltd","Supplies and Services related expenditure","16/04/2021","30.00","Director of Children's Services and Education"
"Type of Retail Store","Grocery Stores/Supermarkets","Asda Stores Ltd","Supplies and Services related expenditure","16/04/2021","50.00","Director of Children's Services and Education"
"Transportation Conveyor","Parking Lots, Meters, Garages","Southampton City Counc","Supplies and Services related expenditure","16/04/2021","1.00","Director of Children's Services and Education"
"Facilities/Repair Supplies","Lawn/Garden Supply/Nursery","Www.Tudorenvironmental","Supplies and Services related expenditure","16/04/2021","212.76","Director of Culture, Leisure & Regulatory Services"
"Equipment And Furniture","Equip/Furn Rent/Lease Serv","Acacia Groundcare Equipme","Supplies and Services related expenditure","16/04/2021","489.57","Director of Culture, Leisure & Regulatory Services"
"Type of Retail Store","Grocery Stores/Supermarkets","Tesco Stores 4611","Supplies and Services related expenditure","16/04/2021","40.00","Director of Children's Services and Education"
"Other Supplies","Misc Speciality Retail","Amznmktplace","Supplies and Services related expenditure","16/04/2021","580.99","Director of Children's Services and Education"
"Business To Business Facility/","Industrial Supplies - Def","Arco Limited (Sap)","Supplies and Services related expenditure","16/04/2021","89.10","Director of Housing, Neighbourhood and Building Services"
"Personal Service Provider","Commercial Photo/Art/Graph","Stk*shutterstock","Supplies and Services related expenditure","16/04/2021","19.00","Director of Housing, Neighbourhood and Building Services"
"Facilities/Repair Supplies","Lawn/Garden Supply/Nursery","Dobies","Supplies and Services related expenditure","16/04/2021","60.99","Director of Housing, Neighbourhood and Building Services"
"Miscellaneous","Financial Inst/Merchandise","Credit Style Ltd","Supplies and Services related expenditure","16/04/2021","233.69","Director of Culture, Leisure & Regulatory Services"
"Facilities/Repair Supplies","Lawn/Garden Supply/Nursery","M & S Enterprises","Supplies and Services related expenditure","16/04/2021","120.91","Director of Housing, Neighbourhood and Building Services"
"Business To Business Services","Misc Publishing & Printing","Www.Emap.Com/Events","Supplies and Services related expenditure","16/04/2021","199.00","Chief Exec"
"Miscellaneous","Fines","Hmcourts-Service.G","Agency and Third Party Payments related expenditure","16/04/2021","226.00","Director of Culture, Leisure & Regulatory Services"
"Type of Retail Store","Grocery Stores/Supermarkets","Tesco Stores 4579","Premises related expenditure","16/04/2021","41.67","Director of Children's Services and Education"
"Type of Retail Store","Grocery Stores/Supermarkets","Tesco Stores 4579","Supplies and Services related expenditure","16/04/2021","27.22","Director of Children's Services and Education"
"Type of Retail Store","Grocery Stores/Supermarkets","Tesco Stores 4579","Supplies and Services related expenditure","16/04/2021","20.80","Director of Children's Services and Education"
"Facilities/Repair Supplies","Home Supply Warehouse Stores","B & Q 1260","Premises related expenditure","16/04/2021","18.60","Director of Adult Services"
"Facilities/Repair Supplies","Lumber/Build. Supply Stores","C.E.F. (Portsmouth)","Supplies and Services related expenditure","16/04/2021","50.00","Director of Adult Services"
"Business To Business Facility/","Industrial Supplies - Def","Arco Limited (Sap)","Supplies and Services related expenditure","16/04/2021","241.77","Director of Housing, Neighbourhood and Building Services"
"Transportation Conveyor","Parking Lots, Meters, Garages","Portsmouth City Co","Supplies and Services related expenditure","16/04/2021","2.10","Director of Children's Services and Education"
"Other Supplies","Discount Stores","Argos Ltd","Premises related expenditure","16/04/2021","10.00","Director of Children's Services and Education"
"Type of Retail Store","Grocery Stores/Supermarkets","Wm Morrisons Store","Supplies and Services related expenditure","16/04/2021","9.92","Director of Children's Services and Education"
"Type of Retail Store","Grocery Stores/Supermarkets","Wm Morrisons Store","Supplies and Services related expenditure","16/04/2021","3.69","Director of Children's Services and Education"
"Other Supplies","Discount Stores","Argos Ltd","Supplies and Services related expenditure","16/04/2021","42.50","Director of Children's Services and Education"
"Government Service","Govt Serv - Default","Hampshire County Counc","Supplies and Services related expenditure","16/04/2021","146.60","Director of Regeneration"
"Other Supplies","Misc Speciality Retail","Amz*amazon Business Uk","Supplies and Services related expenditure","17/04/2021","-36.71","Director of Adult Services"
"Other Supplies","Department Stores","Southern Co-Op 0002","Supplies and Services related expenditure","17/04/2021","10.00","Director of Children's Services and Education"
"Miscellaneous","Continuity/Subscription Mercht","Tesco Subscription","Supplies and Services related expenditure","17/04/2021","6.99","Director of Children's Services and Education"
"Business To Business Facility/","Industrial Supplies - Def","Arco Limited (Sap)","Supplies and Services related expenditure","17/04/2021","47.54","Director of Regeneration"
"Utility","Phone Serv/Equip Utility","Smarty Co Uk","Supplies and Services related expenditure","17/04/2021","13.50","Director of Children's Services and Education"
"Type of Retail Store","Grocery Stores/Supermarkets","Lidl Gb Fareham","Supplies and Services related expenditure","17/04/2021","8.51","Director of Adult Services"
"Personal Service Provider","Professional Services - Def","Thomson Reuters UK Ltd","Supplies and Services related expenditure","17/04/2021","88.00","Capital - Culture, Leisure & Economic Development"
"Transportation Conveyor","Passenger Railways","Trainline","Supplies and Services related expenditure","17/04/2021","29.80","Director of Portsmouth International Port"
"Business To Business Eqpt/Furn","Computer Software Stores","Splashtop.Com","Supplies and Services related expenditure","17/04/2021","74.08","Director of Children's Services and Education"
"Facilities/Repair Supplies","Glass/Paint/Wallpaper Store","Johnstones Dec Centre","Supplies and Services related expenditure","17/04/2021","18.74","Director of Housing, Neighbourhood and Building Services"
"Type of Retail Store","Grocery Stores/Supermarkets","Lidl Gb","Supplies and Services related expenditure","17/04/2021","34.52","Director of Children's Services and Education"
"Type of Retail Store","Grocery Stores/Supermarkets","Lidl Gb","Supplies and Services related expenditure","17/04/2021","1.97","Director of Children's Services and Education"
"Amusement/Entertainment","Tourist Attractions And Xhbt","Paultons Park Ltd","Agency and Third Party Payments related expenditure","17/04/2021","2.08","Director of Children's Services and Education"
"Eating And Drinking Places","Fast Food Restaurants","Kfc-Portsmouth Nor","Agency and Third Party Payments related expenditure","17/04/2021","4.41","Director of Children's Services and Education"
"Amusement/Entertainment","Tourist Attractions And Xhbt","Paultons Park Ltd","Agency and Third Party Payments related expenditure","17/04/2021","5.00","Director of Children's Services and Education"
"Other Supplies","Gift/Card/Novelty And Souvenir Stores","Www.Uk-Mobilestore","Supplies and Services related expenditure","18/04/2021","4.98","Director of Culture, Leisure & Regulatory Services"
"Other Supplies","Misc Speciality Retail","Value Products Ltd","Supplies and Services related expenditure","18/04/2021","15.75","Director of Culture, Leisure & Regulatory Services"
"Facilities/Repair Supplies","Home Supply Warehouse Stores","B&q Direct","Supplies and Services related expenditure","18/04/2021","43.53","Director of Culture, Leisure & Regulatory Services"
"Facilities/Repair Supplies","Home Supply Warehouse Stores","B & Q 1260","Supplies and Services related expenditure","18/04/2021","33.80","Director of Housing, Neighbourhood and Building Services"
"Type of Retail Store","Grocery Stores/Supermarkets","Lidl Gb","Supplies and Services related expenditure","18/04/2021","17.39","Director of Children's Services and Education"
"Transportation Conveyor","Parking Lots, Meters, Garages","3c_*itchen Valley Countr","Transport related expenditure","18/04/2021","1.25","Director of Children's Services and Education"
"Business Services","Advertising Services","Facebk Hmv223fpg2","Supplies and Services related expenditure","18/04/2021","17.00","Solent LEP"
"Other Supplies","Misc Speciality Retail","Amznbusiness","Supplies and Services related expenditure","18/04/2021","56.17","Director of Culture, Leisure & Regulatory Services"
"Other Supplies","Gift/Card/Novelty And Souvenir Stores","Card Factory","Supplies and Services related expenditure","18/04/2021","2.98","Director of Children's Services and Education"
"Business To Business Eqpt/Furn","Stationery/Office Supplies","Pts","Supplies and Services related expenditure","18/04/2021","19.80","Director of Children's Services and Education"
"Government Service","Govt Serv - Default","Hampshire County Counc","Supplies and Services related expenditure","18/04/2021","35.61","Director of Children's Services and Education"
"Government Service","Govt Serv - Default","Hampshire County Counc","Premises related expenditure","18/04/2021","138.78","Director of Children's Services and Education"
"Business Expenses/Services","Stationery Stores","Www.Tts-Groups.Co.Uk","Supplies and Services related expenditure","18/04/2021","139.75","Director of Children's Services and Education"
"Government Service","Govt Serv - Default","Hampshire County Counc","Supplies and Services related expenditure","18/04/2021","157.98","Director of Children's Services and Education"
"Business To Business Facility/","Industrial Supplies - Def","Arco Limited (Ahpp)","Supplies and Services related expenditure","12/04/2021","31.32","Director of Housing, Neighbourhood and Building Services"
"Business To Business Facility/","Industrial Supplies - Def","Arco Limited (Ahpp)","Supplies and Services related expenditure","13/04/2021","34.20","Director of Housing, Neighbourhood and Building Services"
"Business To Business Facility/","Industrial Supplies - Def","Arco Limited (Ahpp)","Supplies and Services related expenditure","16/04/2021","12.70","Director of Housing, Neighbourhood and Building Services"
"Personal Service Provider","Mgmt/Consult/Public Rel Ser","Tvlicensing.Co.Uk","Supplies and Services related expenditure","16/04/2021","159.00","Director of Children's Services and Education"
"Business To Business Facility/","Industrial Supplies - Def","Arco Limited (Ahpp)","Supplies and Services related expenditure","16/04/2021","14.49","Director of Housing, Neighbourhood and Building Services"
"Personal Service Provider","Mgmt/Consult/Public Rel Ser","Tvlicensing.Co.Uk","Supplies and Services related expenditure","16/04/2021","159.00","Director of Housing, Neighbourhood and Building Services"
"Business To Business Facility/","Industrial Supplies - Def","Arco Limited (Ahpp)","Supplies and Services related expenditure","18/04/2021","20.88","Director of Housing, Neighbourhood and Building Services"
"Business Expenses/Services","Stationery Stores","Mil/superstickers-","Supplies and Services related expenditure","18/04/2021","14.45","Director of Children's Services and Education"
"Personal Service Provider","Mgmt/Consult/Public Rel Ser","Tvlicensing.Co.Uk","Supplies and Services related expenditure","18/04/2021","159.00","Director of Children's Services and Education"
"Freight/Courier/Warehouse Svcs","Public Warehousing","Big Yellow - Portsmout","Premises related expenditure","19/04/2021","106.00","Director of Housing, Neighbourhood and Building Services"
"Freight/Courier/Warehouse Svcs","Public Warehousing","Big Yellow - Portsmout","Premises related expenditure","19/04/2021","22.00","Director of Housing, Neighbourhood and Building Services"
"Other Supplies","Misc Speciality Retail","Amznmktplace","Supplies and Services related expenditure","19/04/2021","20.08","Director of Housing, Neighbourhood and Building Services"
"Facilities/Repair Supplies","Home Supply Warehouse Stores","B & Q 1260","Supplies and Services related expenditure","19/04/2021","1.72","Director of Culture, Leisure & Regulatory Services"
"Facilities/Repair Supplies","Home Supply Warehouse Stores","B & Q 1260","Supplies and Services related expenditure","19/04/2021","-4.50","Director of Culture, Leisure & Regulatory Services"
"Government Service","Govt Serv - Default","Www.Ico.Org.Uk","Supplies and Services related expenditure","19/04/2021","40.00","Director of Children's Services and Education"
"Miscellaneous","Continuity/Subscription Mercht","Google","Supplies and Services related expenditure","19/04/2021","17.78","Director of Corporate Services"
"Government Service","Schools - Default","School Library Ass","Supplies and Services related expenditure","19/04/2021","79.17","Director of Culture, Leisure & Regulatory Services"
"Eating And Drinking Places","Eating Places/Restaurants","Pure Ground","Agency and Third Party Payments related expenditure","19/04/2021","6.60","Director of Children's Services and Education"
"Type of Retail Store","Grocery Stores/Supermarkets","Tesco Stores 4579","Supplies and Services related expenditure","19/04/2021","1.21","Director of Children's Services and Education"
"Type of Retail Store","Grocery Stores/Supermarkets","Tesco Stores 4579","Supplies and Services related expenditure","19/04/2021","21.20","Director of Children's Services and Education"
"Other Supplies","Misc Speciality Retail","Amznmktplace","Supplies and Services related expenditure","19/04/2021","106.75","Director of Children's Services and Education"
"Miscellaneous","Other Direct Marketers","Amazon.Co.Uk","Supplies and Services related expenditure","19/04/2021","38.28","Director of Children's Services and Education"
"Business To Business Facility/","Industrial Supplies - Def","Arco Limited (Ahpp)","Supplies and Services related expenditure","19/04/2021","57.02","Director of Housing, Neighbourhood and Building Services"
"Medical","Lab/Med/Hospital Equipment","Wightman & Parrish","Premises related expenditure","19/04/2021","149.44","Director of Housing, Neighbourhood and Building Services"
"Business Services","Business Services - Default","Fast Key Services Limi","Supplies and Services related expenditure","19/04/2021","6.11","Director of Regeneration"
"Facilities/Repair Supplies","Home Supply Warehouse Stores","B & Q 1048","Premises related expenditure","19/04/2021","64.16","Director of Children's Services and Education"
"Transportation Conveyor","Passenger Railways","Thetrainline.Com","Supplies and Services related expenditure","19/04/2021","36.41","Director of Children's Services and Education"
"Facilities/Repair Supplies","Lumber/Build. Supply Stores","Www.Credit.Trade.C","Premises related expenditure","19/04/2021","57.32","Director of Children's Services and Education"
"Facilities/Repair Supplies","Lumber/Build. Supply Stores","Www.Credit.Trade.C","Premises related expenditure","19/04/2021","377.70","Director of Children's Services and Education"
"Government Service","Schools - Default","Classroom Capers","Supplies and Services related expenditure","19/04/2021","300.00","Director of Children's Services and Education"
"Government Service","Schools - Default","Classroom Capers","Supplies and Services related expenditure","19/04/2021","158.33","Director of Children's Services and Education"
"Equipment And Furniture","Furniture/Equip Stores","Ikea Ltd 125 Southampton","Supplies and Services related expenditure","19/04/2021","20.83","Director of Housing, Neighbourhood and Building Services"
"Business To Business Eqpt/Furn","Computer Software Stores","Sp * Magicwhiteboard","Supplies and Services related expenditure","19/04/2021","34.92","Director of Children's Services and Education"
"Type of Retail Store","Grocery Stores/Supermarkets","Asda Groceries Online","Supplies and Services related expenditure","19/04/2021","157.50","Director of Children's Services and Education"
"Other Supplies","Misc Speciality Retail","Timpson Ltd","Supplies and Services related expenditure","19/04/2021","5.83","Director of Housing, Neighbourhood and Building Services"
"Other Supplies","Misc Speciality Retail","Amznmktplace","Supplies and Services related expenditure","19/04/2021","3.79","Director of Children's Services and Education"
"Utility","Phone Serv/Equip Utility","Bt.Com Consumer Bp","Supplies and Services related expenditure","19/04/2021","20.83","Director of Children's Services and Education"
"Miscellaneous","Charitable/Soc Service Orgs","Www.Preschool.Org.Uk","Supplies and Services related expenditure","19/04/2021","8.50","Director of Children's Services and Education"
"Miscellaneous","Charitable/Soc Service Orgs","Www.Preschool.Org.Uk","Supplies and Services related expenditure","19/04/2021","3.75","Director of Children's Services and Education"
"Miscellaneous","Charitable/Soc Service Orgs","Www.Preschool.Org.Uk","Supplies and Services related expenditure","19/04/2021","23.15","Director of Children's Services and Education"
"Miscellaneous","Charitable/Soc Service Orgs","Www.Preschool.Org.Uk","Supplies and Services related expenditure","19/04/2021","19.40","Director of Children's Services and Education"
"Miscellaneous","Charitable/Soc Service Orgs","Www.Preschool.Org.Uk","Supplies and Services related expenditure","19/04/2021","3.75","Director of Children's Services and Education"
"Miscellaneous","Charitable/Soc Service Orgs","Www.Preschool.Org.Uk","Supplies and Services related expenditure","19/04/2021","19.40","Director of Children's Services and Education"
"Miscellaneous","Charitable/Soc Service Orgs","Www.Preschool.Org.Uk","Supplies and Services related expenditure","19/04/2021","3.75","Director of Children's Services and Education"
"Miscellaneous","Civic/Social/Fraternal Assc","West Berkshire Distric","Supplies and Services related expenditure","19/04/2021","107.14","Director of Children's Services and Education"
"Government Service","Schools - Default","Kym Scott Consultancy","Employees related expenditure","19/04/2021","150.00","Director of Children's Services and Education"
"Government Service","Govt Serv - Default","Pcc Internet Payment","Supplies and Services related expenditure","19/04/2021","-22.00","Director of Children's Services and Education"
"Type of Retail Store","Grocery Stores/Supermarkets","Tesco Store 3055","Supplies and Services related expenditure","19/04/2021","30.00","Director of Children's Services and Education"
"Type of Retail Store","Grocery Stores/Supermarkets","Aldi Stores Ltd","Supplies and Services related expenditure","19/04/2021","2.08","Director of Children's Services and Education"
"Type of Retail Store","Grocery Stores/Supermarkets","Aldi Stores Ltd","Supplies and Services related expenditure","19/04/2021","40.62","Director of Children's Services and Education"
"Business To Business Eqpt/Furn","Stationery/Office Supplies","Www.Banneruk.Com","Supplies and Services related expenditure","19/04/2021","65.31","Director of Adult Services"
"Business To Business Facility/","Electrical Parts/Equipment","Edmundson Electrical","Premises related expenditure","19/04/2021","474.93","Director of Portsmouth International Port"
"Type of Retail Store","Grocery Stores/Supermarkets","Asda Stores","Supplies and Services related expenditure","19/04/2021","2.49","Director of Adult Services"
"Type of Retail Store","Grocery Stores/Supermarkets","Asda Stores","Supplies and Services related expenditure","19/04/2021","1.50","Director of Adult Services"
"Type of Retail Store","Grocery Stores/Supermarkets","Asda Stores","Supplies and Services related expenditure","19/04/2021","32.92","Director of Adult Services"
"Government Service","Govt Serv - Default","Hampshire County Counc","Supplies and Services related expenditure","19/04/2021","112.72","Director of Children's Services and Education"
"Business To Business Facility/","Industrial Supplies - Def","Arco Limited (Ahpp)","Supplies and Services related expenditure","19/04/2021","17.28","Director of Portsmouth International Port"
"Business To Business Facility/","Industrial Supplies - Def","Arco Limited (Ahpp)","Supplies and Services related expenditure","19/04/2021","85.55","Director of Portsmouth International Port"
"Type of Retail Store","Grocery Stores/Supermarkets","Tesco Store 3048","Supplies and Services related expenditure","19/04/2021","60.00","Director of Children's Services and Education"
"Type of Retail Store","Grocery Stores/Supermarkets","Tesco Store 3048","Supplies and Services related expenditure","19/04/2021","60.00","Director of Children's Services and Education"
